{"text_format":"1","workbook":"xlsx","n_sheets":4,"sheets":["analyzer","backyard","secondbackyard","sample data"],"not_rendered":{"charts":3,"images":0,"macros":1,"external_links":0,"defined_names":0,"comments":0,"pivot_tables":0},"unopened":[],"bounds":{"document_bytes":16777216,"sheet_cells":100000,"rows_first":2000,"rows_last":500,"rows_between":2000,"halvings":0,"cell_chars":16384,"cell_head_chars":4096},"cells_cut":0,"cells_raw":0,"read":"whole","date_system":"1900"}

{"sheet":"analyzer","index":0,"n_rows":56,"n_cols":33,"rows_kept":56,"cut":false,"hidden":false,"merged":[]}
[1.42,2.13]
[1.73,1.59,"１。",null,null,null,null,null,null,null,null,null,null,null,"http://hdl.handle.net/10787/00033922"]
[1.57,1.1399999999999999,"AB",null,null,null,null,null,null,null,null,null,null,null,"2 SAMPLE data analyzer"]
[1.49,1.77,"列",null,null,null,null,null,null,null,null,null,null,null,null,"by"]
[2.52,1.36,"の",null,null,null,null,null,null,null,null,null,null,null,"ISHIGURO, Makio"]
[1.83,1.46,"デ",null,null,null,null,null,null,null,null,null,null,null,"2019.7.10"]
[1.35,1.19," |"]
[1.53,null,"タ"]
[null,null,"を"]
[null,null,"書"]
[null,null,"き"]
[null,null,"換",null,null,null,null,null,null,null,null,null,null,null,"平均    =",0]
[null,null,"え、　２。「RUNボタン」をクリック",null,null,null,null,null,null,null,null,null,null,null,"標準偏差=",1]
[null,null,null,null,null,null,null,null,null,null,null,null,null,null,"個数    =",1000]
[null,null,"AIC_g(A+B)",null,null,14.725597744340849]
[null,null,"AIC_g",9.8878831579940538,7.9636574328544167,17.851540590848472,null,13.44,23.557000000000002,8]
[null,null,"bb","データ Ａ[青]","データ Ｂ[赤]","　　全体"]
[null,null,"データ数",8,7,15]
[null,null,"最小値",1.35,1.1399999999999999,1.1399999999999999]
[null,null,"最大値",2.52,2.13,2.52]
[null,null,"AIC",5.4497354893582353,10.983977271764623,16.433712761122859]
[null,null,"AIC(A+B)",null,null,10.931568288990988]
[null,null,"「勝率」",0.59821431955226823,0.40178568044773172]
[null,null,null,"↑","↑"]
[null,null,null,"↑","Ｂ＞Ａとなる確率"]
[null,null,null,"Ａ＞Ｂとなる確率",null,null,"　　図１：確率変数Ａの分布[青]とＢの分布[赤]　　 (細線は正規分布モデル)",null,null,null,null,null,null,null,"図２：確率変数「Ａ－Ｂ」の分布"]
[null,null,null,null,null,null,null,null,"（上部に累積確率を示す）"]
[]
[]
[]
[null,null,"動作パラメータ設定 ---------------------------"]
[null,null,"ヒストグラム区分数",null,null,"jobtype 2：2-sample データ解析；０：「Ａ－Ｂ」データ解析j"]
[null,null,7,null,null,2]
[]
[]
[null,null,"Dont touch below this line ----------------------------"]
[null,null,null,5.0652277285037952]
[null,null,"maximumx",2.7174244897959183]
[null,null,null,0.94060408163265308,1.1380285714285714,1.3354530612244897,1.532877551020408,1.7303020408163265,1.9277265306122449,2.1251510204081629,2.3225755102040817,2.52,2.7174244897959183]
[null,null,null,1]
[null,null,null,null,null,1.3354530612244897,1.532877551020408,1.7303020408163265,1.9277265306122449,2.1251510204081629,2.3225755102040817,2.52]
[null,null,null,null,0,0,0.5,0.75,0.875,0.875,0.875,1]
[]
[null,null,null,null,1.1380285714285714,1.3354530612244897,1.532877551020408,1.7303020408163265,1.9277265306122449,2.1251510204081629,2.3225755102040817]
[null,null,null,null,0,0.2857142857142857,0.5714285714285714,0.7142857142857143,0.8571428571428571,0.8571428571428571,1,1]
[]
[null,null,null,null,-7,-6,-5,-4,-3,-2,-1,0,1,2,3,4,5,6,7]
[null,null,null,null,0,0,0,0.36180195212364197,0.18090097606182098,0.45225244760513306,0.54270291328430176,0.99495536088943481,1.2663068771362305,0.54270291328430176,0.27135145664215088,9.0450488030910492E-2,0.18090097606182098,0.18090097606182098,0]
[]
[null,null,null,12,5]
[null,null,0.63117923361519668,0.70110061804085022,0.77102200246650376,0.84094338689215742,0.91086477131781085,0.98078615574346451,1.0507075401691179,1.1206289245947716,1.1905503090204252,1.2604716934460787,1.3303930778717321,1.4003144622973858,1.4702358467230394,1.5401572311486929,1.6100786155743465,1.68,1.7499213844256536,1.8198427688513072,1.8897641532769607,1.9596855377026143,2.0296069221282678,2.0995283065539212,2.1694496909795751,2.2393710754052285,2.3092924598308819,2.3792138442565358,2.4491352286821892,2.5190566131078427,2.5889779975334966,2.6588993819591495,2.7288207663848034]
[null,null,1.3498980316300933E-3,2.5551303304279312E-3,4.6611880237187476E-3,8.1975359245961381E-3,1.3903447513498597E-2,2.2750131948179219E-2,3.5930319112925789E-2,5.4799291699558036E-2,8.0756659233771108E-2,0.1150696702217083,0.15865525393145699,0.21185539858339672,0.27425311775007366,0.34457825838967582,0.42074029056089712,0.5,0.57925970943910321,0.6554217416103244,0.72574688224992645,0.78814460141660347,0.84134474606854304,0.88493032977829167,0.91924334076622904,0.94520070830044201,0.96406968088707423,0.9772498680518209,0.98609655248650141,0.99180246407540384,0.99533881197628127,0.99744486966957202,0.9986501019683699]
[null,null,1.2676660933824418E-2,2.2641003601398535E-2,3.8852117546751948E-2,6.4056312611071725E-2,0.1014699383818725,0.15443334526820168,0.22582550088046602,0.31727299334982767,0.42827374447926769,0.55544110454417106,0.69212223558424379,0.82862075784414102,0.95314074693733464,1.0533834343480426,1.1185210281162161,1.1411166517322682,1.1185210281162159,1.0533834343480422,0.9531407469373343,0.82862075784414047,0.69212223558424379,0.55544110454417106,0.42827374447926692,0.31727299334982739,0.22582550088046602,0.15443334526820135,0.10146993838187239,6.4056312611071586E-2,3.8852117546751858E-2,2.2641003601398563E-2,1.2676660933824396E-2]
[null,null,0.55652414960948848,0.62075587296885593,0.68498759632822337,0.7492193196875907,0.81345104304695814,0.87768276640632559,0.94191448976569303,1.0061462131250605,1.0703779364844279,1.1346096598437954,1.1988413832031628,1.2630731065625302,1.3273048299218977,1.3915365532812651,1.4557682766406326,1.52,1.5842317233593675,1.6484634467187349,1.7126951700781023,1.7769268934374698,1.8411586167968372,1.9053903401562047,1.9696220635155721,2.0338537868749396,2.0980855102343066,2.162317233593674,2.2265489569530414,2.2907806803124089,2.3550124036717763,2.4192441270311438,2.4834758503905112]
[null,null,1.3498980316300933E-3,2.5551303304279312E-3,4.6611880237187493E-3,8.1975359245961138E-3,1.3903447513498597E-2,2.2750131948179191E-2,3.593031911292581E-2,5.4799291699558009E-2,8.0756659233771094E-2,0.1150696702217083,0.15865525393145707,0.21185539858339675,0.27425311775007366,0.34457825838967604,0.42074029056089723,0.50000000000000022,0.57925970943910332,0.65542174161032452,0.72574688224992667,0.78814460141660359,0.84134474606854326,0.884930329778292,0.91924334076622916,0.94520070830044212,0.96406968088707423,0.97724986805182079,0.98609655248650141,0.99180246407540384,0.99533881197628127,0.99744486966957202,0.9986501019683699]
[null,null,1.3799562521909746E-2,2.4646548991669223E-2,4.2293647198879715E-2,6.9730435752279746E-2,0.1104581692375155,0.16811308708351549,0.24582917652443853,0.34537710924824228,0.46621033285387947,0.60464220739266017,0.75343058496298287,0.90202017822470526,1.0375701770524051,1.1466923851409185,1.2175998821878944,1.2421970314245097,1.2175998821878939,1.1466923851409179,1.0375701770524042,0.90202017822470437,0.75343058496298188,0.60464220739265906,0.46621033285387842,0.34537710924824155,0.24582917652443853,0.16811308708351549,0.1104581692375155,6.9730435752279746E-2,4.2293647198879659E-2,2.4646548991669192E-2,1.3799562521909722E-2]

{"sheet":"backyard","index":1,"n_rows":13,"n_cols":19,"rows_kept":13,"cut":false,"hidden":false,"merged":[]}
[2.52,null,null,1.1380285714285714,1.1380285714285714,1.3354530612244897,1.3354530612244897,1.532877551020408,1.532877551020408,1.7303020408163265,1.7303020408163265,1.9277265306122449,1.9277265306122449,2.1251510204081629,2.1251510204081629,2.3225755102040817,2.3225755102040817,2.52,2.52]
["AAA",null,{"$f":"C3/(D1-B1)","v":0},{"$f":"D3/(E1-C1)","v":0},0,0,2.5326138642518976,2.5326138642518976,1.2663069321259475,1.2663069321259475,0.6331534660629744,0.6331534660629744,0,0,0,0,0.6331534660629744,0.6331534660629744,0]
[null,null,{"$f":"C4/8","v":0},{"$f":"D4/8","v":0},0,0,0.5,0.5,0.25,0.25,0.125,0.125,0,0,0,0,0.125,0.125]
[null,null,{"$f":"C5-A5","v":0},{"$f":"D5-B5","v":0},0,0,4,4,2,2,1,1,0,0,0,0,1,1]
[null,null,{"$f":"SUM(D6:D13)","v":0},{"$f":"SUM(E6:E13)","v":0},0,0,4,4,6,6,7,7,7,7,7,7,8,8]
[1.42,{"$f":"IF(B$1=$A$1,1,IF($A6<B$1,1,0))","v":0},{"$f":"IF(C$1=$A$1,1,IF($A6<C$1,1,0))","v":0},0,0,0,0,1,1,1,1,1,1,1,1,1,1,1,1]
[1.73,{"$f":"IF(B$1=$A$1,1,IF($A7<B$1,1,0))","v":0},0,0,0,0,0,0,0,1,1,1,1,1,1,1,1,1,1]
[1.57,0,0,0,0,0,0,0,0,1,1,1,1,1,1,1,1,1,1]
[1.49,0,0,0,0,0,0,1,1,1,1,1,1,1,1,1,1,1,1]
[2.52,0,0,0,0,0,0,0,0,0,0,0,0,0,0,0,0,1,1]
[1.83,0,0,0,0,0,0,0,0,0,0,1,1,1,1,1,1,1,1]
[1.35,0,0,0,0,0,0,1,1,1,1,1,1,1,1,1,1,1,1]
[1.53,0,0,0,0,0,0,1,1,1,1,1,1,1,1,1,1,1,1]

{"sheet":"secondbackyard","index":2,"n_rows":12,"n_cols":19,"rows_kept":12,"cut":false,"hidden":false,"merged":[]}
[2.13,null,null,1.1380285714285714,1.1380285714285714,1.3354530612244897,1.3354530612244897,1.532877551020408,1.532877551020408,1.7303020408163265,1.7303020408163265,1.9277265306122449,1.9277265306122449,2.1251510204081629,2.1251510204081629,2.3225755102040817,2.3225755102040817,2.52,2.52]
["AAA",null,{"$f":"C3/(D1-B1)","v":0},{"$f":"D3/(E1-C1)","v":0},1.4472079224296557,1.4472079224296557,1.4472079224296557,1.4472079224296557,0.72360396121482706,0.72360396121482706,0.72360396121482784,0.72360396121482784,0,0,0.72360396121482617,0.72360396121482617,0,0,0]
[null,null,{"$f":"C4/7","v":0},{"$f":"D4/7","v":0},0.2857142857142857,0.2857142857142857,0.2857142857142857,0.2857142857142857,0.14285714285714285,0.14285714285714285,0.14285714285714285,0.14285714285714285,0,0,0.14285714285714285,0.14285714285714285,0,0]
[null,null,{"$f":"C5-A5","v":0},{"$f":"D5-B5","v":0},2,2,2,2,1,1,1,1,0,0,1,1,0,0]
[null,null,{"$f":"SUM(D6:D12)","v":0},{"$f":"SUM(E6:E12)","v":0},2,2,4,4,5,5,6,6,6,6,7,7,7,7]
[2.13,{"$f":"IF(B$1=$A$1,1,IF($A6<B$1,1,0))","v":0},{"$f":"IF(C$1=$A$1,1,IF($A6<C$1,1,0))","v":0},0,0,0,0,0,0,0,0,0,0,0,0,1,1,1,1]
[1.59,{"$f":"IF(B$1=$A$1,1,IF($A7<B$1,1,0))","v":0},0,0,0,0,0,0,0,1,1,1,1,1,1,1,1,1,1]
[1.1399999999999999,0,0,0,0,1,1,1,1,1,1,1,1,1,1,1,1,1,1]
[1.77,0,0,0,0,0,0,0,0,0,0,1,1,1,1,1,1,1,1]
[1.36,0,0,0,0,0,0,1,1,1,1,1,1,1,1,1,1,1,1]
[1.46,0,0,0,0,0,0,1,1,1,1,1,1,1,1,1,1,1,1]
[1.19,0,0,0,0,1,1,1,1,1,1,1,1,1,1,1,1,1,1]

{"sheet":"sample data","index":3,"n_rows":1000,"n_cols":16,"rows_kept":1000,"cut":false,"hidden":false,"merged":[]}
[1.42,2.13,null,23,19,null,131,142,null,32.895000000000003,29.079000000000001,null,33.21,null,2,-3.6111111299303979E-2]
[1.73,1.59,null,18,18,null,144,140,null,31.382999999999999,23.914999999999999,null,33.165999999999997,null,10,-2.0463614677802975E-2]
[1.57,1.1399999999999999,null,29,24,null,141,130,null,32.146999999999998,23.794,null,33.689,null,4,1.8362803627889272E-2]
[1.49,1.77,null,22,23,null,129,131,null,30.774999999999999,28.9,null,33.201999999999998,null,5,8.3291011448400898E-2]
[2.52,1.36,null,33,31,null,142,138,null,32.720999999999997,28.826000000000001,null,33.204999999999998,null,7,-0.295758091169398]
[1.83,1.46,null,20,22,null,135,146,null,30.58,28.800999999999998,null,33.399000000000001,null,7.5,0.15780057032324035]
[1.35,1.19,null,17,16,null,145,141,null,32.189,28.169,null,33.4,null,8,0.12659269785326122]
[1.53,null,null,25,23,null,131,137,null,32.728000000000002,28.358000000000001,null,33.075000000000003,null,9,-2.8676177413665085E-2]
[null,null,null,27,24,null,132,140,null,28.800999999999998,28.497,null,33.298000000000002,null,10,8.222498954487989E-2]
[null,null,null,30,26,null,138,137,null,32.195,28.548999999999999,null,33.335599999999999,null,null,-0.1133662387640722]
[null,null,null,25,24,null,136,149,null,32.161000000000001,28.739000000000001,null,33.168999999999997,null,null,0.12584631760916024]
[null,null,null,27,28,null,126,145,null,31.73,28.495999999999999,null,33.343000000000004,null,null,0.19341126849103252]
[null,null,null,null,null,null,133,141,null,null,null,null,null,null,null,9.7404709970729236E-3]
[null,null,null,null,null,null,140,138,null,null,null,null,null,null,null,3.4819222996309546E-2]
[null,null,null,null,null,null,136,150,null,null,null,null,null,null,null,-2.4972418287136776E-2]
[null,null,null,null,null,null,133,145,null,null,null,null,null,null,null,3.0868540228432207E-2]
[null,null,null,null,null,null,144,144,null,null,null,null,null,null,null,-3.7839137375983704E-2]
[null,null,null,null,null,null,134,140,null,null,null,null,null,null,null,-9.4005554739942654E-2]
[null,null,null,null,null,null,140,140,null,null,null,null,null,null,null,-0.12657924828546882]
[null,null,null,null,null,null,136,148,null,null,null,null,null,null,null,9.3799834018098688E-2]
[null,null,null,null,null,null,null,null,null,null,null,null,null,null,null,-0.15375210128961186]
[null,null,null,null,null,null,null,null,null,null,null,null,null,null,null,-4.5488301059700711E-2]
[null,null,null,null,null,null,null,null,null,null,null,null,null,null,null,-0.15450743460517202]
[null,null,null,null,null,null,null,null,null,null,null,null,null,null,null,0.18334904680733466]
[null,null,null,null,null,null,null,null,null,null,null,null,null,null,null,0.10035493776722233]
[null,null,null,null,null,null,null,null,null,null,null,null,null,null,null,3.2408042462786939E-2]
[null,null,null,null,null,null,null,null,null,null,null,null,null,null,null,-6.1945358300831491E-3]
[null,null,null,null,null,null,null,null,null,null,null,null,null,null,null,-0.23409076992299266]
[null,null,null,null,null,null,null,null,null,null,null,null,null,null,null,-0.12423647104626133]
[null,null,null,null,null,null,null,null,null,null,null,null,null,null,null,0.12879487595167405]
[null,null,null,null,null,null,null,null,null,null,null,null,null,null,null,5.1671548343064345E-2]
[null,null,null,null,null,null,null,null,null,null,null,null,null,null,null,-9.7935387775765839E-3]
[null,null,null,null,null,null,null,null,null,null,null,null,null,null,null,3.870383106024327E-2]
[null,null,null,null,null,null,null,null,null,null,null,null,null,null,null,9.4334465586899924E-2]
[null,null,null,null,null,null,null,null,null,null,null,null,null,null,null,-4.3124880062697223E-4]
[null,null,null,null,null,null,null,null,null,null,null,null,null,null,null,1.7658750927929179E-2]
[null,null,null,null,null,null,null,null,null,null,null,null,null,null,null,-0.1780814087691861]
[null,null,null,null,null,null,null,null,null,null,null,null,null,null,null,7.5344153692925506E-2]
[null,null,null,null,null,null,null,null,null,null,null,null,null,null,null,2.1162835774566804E-2]
[null,null,null,null,null,null,null,null,null,null,null,null,null,null,null,7.8070546898120471E-2]
[null,null,null,null,null,null,null,null,null,null,null,null,null,null,null,-6.9603326887762371E-2]
[null,null,null,null,null,null,null,null,null,null,null,null,null,null,null,0.11658240209753995]
[null,null,null,null,null,null,null,null,null,null,null,null,null,null,null,-3.5923092946051165E-2]
[null,null,null,null,null,null,null,null,null,null,null,null,null,null,null,-1.4258611445980991E-2]
[null,null,null,null,null,null,null,null,null,null,null,null,null,null,null,1.1364051148168014E-2]
[null,null,null,null,null,null,null,null,null,null,null,null,null,null,null,-3.3508133900140874E-2]
[null,null,null,null,null,null,null,null,null,null,null,null,null,null,null,0.1622498048409243]
[null,null,null,null,null,null,null,null,null,null,null,null,null,null,null,6.7462761892143133E-2]
[null,null,null,null,null,null,null,null,null,null,null,null,null,null,null,4.2165852904278926E-2]
[null,null,null,null,null,null,null,null,null,null,null,null,null,null,null,-0.10389289505790267]
[null,null,null,null,null,null,null,null,null,null,null,null,null,null,null,-1.2386457669164639E-2]
[null,null,null,null,null,null,null,null,null,null,null,null,null,null,null,0.17055368071417221]
[null,null,null,null,null,null,null,null,null,null,null,null,null,null,null,-0.10348385953833157]
[null,null,null,null,null,null,null,null,null,null,null,null,null,null,null,3.1648302309109581E-2]
[null,null,null,null,null,null,null,null,null,null,null,null,null,null,null,-7.7661302838052219E-3]
[null,null,null,null,null,null,null,null,null,null,null,null,null,null,null,9.2708770068199914E-2]
[null,null,null,null,null,null,null,null,null,null,null,null,null,null,null,-0.18425865801618965]
[null,null,null,null,null,null,null,null,null,null,null,null,null,null,null,7.5971212957526207E-2]
[null,null,null,null,null,null,null,null,null,null,null,null,null,null,null,0.11054519273240887]
[null,null,null,null,null,null,null,null,null,null,null,null,null,null,null,-4.5292374501316013E-2]
[null,null,null,null,null,null,null,null,null,null,null,null,null,null,null,5.2732645010043135E-2]
[null,null,null,null,null,null,null,null,null,null,null,null,null,null,null,-9.5889187662453557E-4]
[null,null,null,null,null,null,null,null,null,null,null,null,null,null,null,7.7656960697853328E-2]
[null,null,null,null,null,null,null,null,null,null,null,null,null,null,null,2.5763801037923015E-2]
[null,null,null,null,null,null,null,null,null,null,null,null,null,null,null,-0.1636126677562878]
[null,null,null,null,null,null,null,null,null,null,null,null,null,null,null,-9.9594095169304606E-2]
[null,null,null,null,null,null,null,null,null,null,null,null,null,null,null,0.1290116994112202]
[null,null,null,null,null,null,null,null,null,null,null,null,null,null,null,-9.9748037702736492E-2]
[null,null,null,null,null,null,null,null,null,null,null,null,null,null,null,0.11428103926347946]
[null,null,null,null,null,null,null,null,null,null,null,null,null,null,null,-1.1063969323934894E-2]
[null,null,null,null,null,null,null,null,null,null,null,null,null,null,null,0.18928649201062145]
[null,null,null,null,null,null,null,null,null,null,null,null,null,null,null,-4.4943614685601735E-2]
[null,null,null,null,null,null,null,null,null,null,null,null,null,null,null,-1.0451785733646124E-3]
[null,null,null,null,null,null,null,null,null,null,null,null,null,null,null,-8.5376428006134538E-3]
[null,null,null,null,null,null,null,null,null,null,null,null,null,null,null,1.4876430658229212E-2]
[null,null,null,null,null,null,null,null,null,null,null,null,null,null,null,0.17101355235994412]
[null,null,null,null,null,null,null,null,null,null,null,null,null,null,null,4.4555616182357302E-2]
[null,null,null,null,null,null,null,null,null,null,null,null,null,null,null,0.23388212308115519]
[null,null,null,null,null,null,null,null,null,null,null,null,null,null,null,-0.14244724674439369]
[null,null,null,null,null,null,null,null,null,null,null,null,null,null,null,-3.0781334286209924E-2]
[null,null,null,null,null,null,null,null,null,null,null,null,null,null,null,5.9304165358983946E-2]
[null,null,null,null,null,null,null,null,null,null,null,null,null,null,null,-0.11385736490084782]
[null,null,null,null,null,null,null,null,null,null,null,null,null,null,null,-0.17275216500642815]
[null,null,null,null,null,null,null,null,null,null,null,null,null,null,null,2.6839841034343639E-2]
[null,null,null,null,null,null,null,null,null,null,null,null,null,null,null,0.14708579859498674]
[null,null,null,null,null,null,null,null,null,null,null,null,null,null,null,-0.12716660247954858]
[null,null,null,null,null,null,null,null,null,null,null,null,null,null,null,2.3526324442334989E-2]
[null,null,null,null,null,null,null,null,null,null,null,null,null,null,null,7.7655890172407455E-2]
[null,null,null,null,null,null,null,null,null,null,null,null,null,null,null,-9.6302533163538373E-2]
[null,null,null,null,null,null,null,null,null,null,null,null,null,null,null,-4.0763273940127215E-2]
[null,null,null,null,null,null,null,null,null,null,null,null,null,null,null,-6.5276555552997551E-2]
[null,null,null,null,null,null,null,null,null,null,null,null,null,null,null,0.12124142808776817]
[null,null,null,null,null,null,null,null,null,null,null,null,null,null,null,8.6313509833573485E-2]
[null,null,null,null,null,null,null,null,null,null,null,null,null,null,null,8.7154685492136244E-2]
[null,null,null,null,null,null,null,null,null,null,null,null,null,null,null,0.1800911783437856]
[null,null,null,null,null,null,null,null,null,null,null,null,null,null,null,5.1204730629137496E-2]
[null,null,null,null,null,null,null,null,null,null,null,null,null,null,null,9.9886345480987807E-2]
[null,null,null,null,null,null,null,null,null,null,null,null,null,null,null,1.8236899685029239E-2]
[null,null,null,null,null,null,null,null,null,null,null,null,null,null,null,-4.8526668736808193E-2]
[null,null,null,null,null,null,null,null,null,null,null,null,null,null,null,0.19009846387711851]
[null,null,null,null,null,null,null,null,null,null,null,null,null,null,null,-5.5131146100617923E-2]
[null,null,null,null,null,null,null,null,null,null,null,null,null,null,null,3.6809258687636605E-2]
[null,null,null,null,null,null,null,null,null,null,null,null,null,null,null,-0.13437655294003617]
[null,null,null,null,null,null,null,null,null,null,null,null,null,null,null,0.14433324098579439]
[null,null,null,null,null,null,null,null,null,null,null,null,null,null,null,9.6873751004130593E-2]
[null,null,null,null,null,null,null,null,null,null,null,null,null,null,null,-0.16626655624927597]
[null,null,null,null,null,null,null,null,null,null,null,null,null,null,null,-0.19532512322256357]
[null,null,null,null,null,null,null,null,null,null,null,null,null,null,null,0.13978007351677466]
[null,null,null,null,null,null,null,null,null,null,null,null,null,null,null,5.2570910343111371E-2]
[null,null,null,null,null,null,null,null,null,null,null,null,null,null,null,-0.10067000730164166]
[null,null,null,null,null,null,null,null,null,null,null,null,null,null,null,9.1979510104186271E-2]
[null,null,null,null,null,null,null,null,null,null,null,null,null,null,null,-2.1553606285752182E-2]
[null,null,null,null,null,null,null,null,null,null,null,null,null,null,null,8.9273870473827885E-2]
[null,null,null,null,null,null,null,null,null,null,null,null,null,null,null,-6.3133914190868057E-2]
[null,null,null,null,null,null,null,null,null,null,null,null,null,null,null,-2.3263873477078298E-2]
[null,null,null,null,null,null,null,null,null,null,null,null,null,null,null,-9.0898165591904945E-2]
[null,null,null,null,null,null,null,null,null,null,null,null,null,null,null,-9.1451879348783058E-2]
[null,null,null,null,null,null,null,null,null,null,null,null,null,null,null,-2.1845251249801641E-2]
[null,null,null,null,null,null,null,null,null,null,null,null,null,null,null,-8.9703811744734543E-3]
[null,null,null,null,null,null,null,null,null,null,null,null,null,null,null,6.6688775811155884E-2]
[null,null,null,null,null,null,null,null,null,null,null,null,null,null,null,7.1927485448129089E-3]
[null,null,null,null,null,null,null,null,null,null,null,null,null,null,null,-5.0739805928126276E-3]
[null,null,null,null,null,null,null,null,null,null,null,null,null,null,null,-9.1209238787821945E-2]
[null,null,null,null,null,null,null,null,null,null,null,null,null,null,null,-0.12706183510849128]
[null,null,null,null,null,null,null,null,null,null,null,null,null,null,null,-8.3039908827328326E-2]
[null,null,null,null,null,null,null,null,null,null,null,null,null,null,null,-1.5890817051963616E-3]
[null,null,null,null,null,null,null,null,null,null,null,null,null,null,null,-5.9142891053842808E-2]
[null,null,null,null,null,null,null,null,null,null,null,null,null,null,null,3.8355104426571932E-2]
[null,null,null,null,null,null,null,null,null,null,null,null,null,null,null,-5.1758135285793441E-2]
[null,null,null,null,null,null,null,null,null,null,null,null,null,null,null,-7.6666724093224448E-2]
[null,null,null,null,null,null,null,null,null,null,null,null,null,null,null,-6.2411690630052058E-2]
[null,null,null,null,null,null,null,null,null,null,null,null,null,null,null,-2.2091150650957819E-2]
[null,null,null,null,null,null,null,null,null,null,null,null,null,null,null,-0.14718723720232518]
[null,null,null,null,null,null,null,null,null,null,null,null,null,null,null,0.24891904669039452]
[null,null,null,null,null,null,null,null,null,null,null,null,null,null,null,0.18979944031894525]
[null,null,null,null,null,null,null,null,null,null,null,null,null,null,null,-3.5861854082456126E-3]
[null,null,null,null,null,null,null,null,null,null,null,null,null,null,null,9.5266662546226108E-3]
[null,null,null,null,null,null,null,null,null,null,null,null,null,null,null,7.7568702520387431E-2]
[null,null,null,null,null,null,null,null,null,null,null,null,null,null,null,-5.5409959282434897E-2]
[null,null,null,null,null,null,null,null,null,null,null,null,null,null,null,6.3461547832357953E-2]
[null,null,null,null,null,null,null,null,null,null,null,null,null,null,null,-2.2309719210542561E-2]
[null,null,null,null,null,null,null,null,null,null,null,null,null,null,null,6.3126933533501108E-3]
[null,null,null,null,null,null,null,null,null,null,null,null,null,null,null,-8.0324270141643325E-2]
[null,null,null,null,null,null,null,null,null,null,null,null,null,null,null,7.159256008684993E-2]
[null,null,null,null,null,null,null,null,null,null,null,null,null,null,null,-7.8458965616548415E-2]
[null,null,null,null,null,null,null,null,null,null,null,null,null,null,null,5.6827405245730045E-2]
[null,null,null,null,null,null,null,null,null,null,null,null,null,null,null,-0.14056560665348333]
[null,null,null,null,null,null,null,null,null,null,null,null,null,null,null,-0.13417931863138291]
[null,null,null,null,null,null,null,null,null,null,null,null,null,null,null,4.7970917607584859E-2]
[null,null,null,null,null,null,null,null,null,null,null,null,null,null,null,-7.8642535700443342E-2]
[null,null,null,null,null,null,null,null,null,null,null,null,null,null,null,-0.1205064245850994]
[null,null,null,null,null,null,null,null,null,null,null,null,null,null,null,3.2701660782147181E-2]
[null,null,null,null,null,null,null,null,null,null,null,null,null,null,null,-2.6201988411354068E-2]
[null,null,null,null,null,null,null,null,null,null,null,null,null,null,null,-3.9473032441955283E-2]
[null,null,null,null,null,null,null,null,null,null,null,null,null,null,null,-9.6016109486260437E-2]
[null,null,null,null,null,null,null,null,null,null,null,null,null,null,null,-3.1763934088089668E-2]
[null,null,null,null,null,null,null,null,null,null,null,null,null,null,null,4.5051687451356959E-2]
[null,null,null,null,null,null,null,null,null,null,null,null,null,null,null,-8.1132221228072496E-2]
[null,null,null,null,null,null,null,null,null,null,null,null,null,null,null,6.7911790259682525E-2]
[null,null,null,null,null,null,null,null,null,null,null,null,null,null,null,-3.3485599066568977E-2]
[null,null,null,null,null,null,null,null,null,null,null,null,null,null,null,5.7121603152796241E-2]
[null,null,null,null,null,null,null,null,null,null,null,null,null,null,null,-6.3183231216714833E-2]
[null,null,null,null,null,null,null,null,null,null,null,null,null,null,null,-5.5239048655126834E-2]
[null,null,null,null,null,null,null,null,null,null,null,null,null,null,null,0.12223573554304903]
[null,null,null,null,null,null,null,null,null,null,null,null,null,null,null,0.25207099156323631]
[null,null,null,null,null,null,null,null,null,null,null,null,null,null,null,-9.8544739517875679E-2]
[null,null,null,null,null,null,null,null,null,null,null,null,null,null,null,3.7718119819037166E-2]
[null,null,null,null,null,null,null,null,null,null,null,null,null,null,null,0.13612812058411783]
[null,null,null,null,null,null,null,null,null,null,null,null,null,null,null,0.12262098521254146]
[null,null,null,null,null,null,null,null,null,null,null,null,null,null,null,9.1827010688854127E-2]
[null,null,null,null,null,null,null,null,null,null,null,null,null,null,null,0.1192469892487546]
[null,null,null,null,null,null,null,null,null,null,null,null,null,null,null,9.0538819675783422E-2]
[null,null,null,null,null,null,null,null,null,null,null,null,null,null,null,2.2013338026960007E-2]
[null,null,null,null,null,null,null,null,null,null,null,null,null,null,null,6.7751737444572302E-2]
[null,null,null,null,null,null,null,null,null,null,null,null,null,null,null,-5.8975832279519858E-2]
[null,null,null,null,null,null,null,null,null,null,null,null,null,null,null,-4.391341945683961E-2]
[null,null,null,null,null,null,null,null,null,null,null,null,null,null,null,-8.0050085626764092E-2]
[null,null,null,null,null,null,null,null,null,null,null,null,null,null,null,3.5095506737536621E-2]
[null,null,null,null,null,null,null,null,null,null,null,null,null,null,null,2.2487954461004059E-2]
[null,null,null,null,null,null,null,null,null,null,null,null,null,null,null,6.3261834632155539E-2]
[null,null,null,null,null,null,null,null,null,null,null,null,null,null,null,-7.6288003403694418E-2]
[null,null,null,null,null,null,null,null,null,null,null,null,null,null,null,-9.7488533217162554E-2]
[null,null,null,null,null,null,null,null,null,null,null,null,null,null,null,1.8588279034030229E-2]
[null,null,null,null,null,null,null,null,null,null,null,null,null,null,null,-4.4178269198318368E-2]
[null,null,null,null,null,null,null,null,null,null,null,null,null,null,null,-0.1616751199128621]
[null,null,null,null,null,null,null,null,null,null,null,null,null,null,null,-0.12913841162935902]
[null,null,null,null,null,null,null,null,null,null,null,null,null,null,null,6.7790742651559571E-2]
[null,null,null,null,null,null,null,null,null,null,null,null,null,null,null,-0.12059717494161551]
[null,null,null,null,null,null,null,null,null,null,null,null,null,null,null,0.31715833104455549]
[null,null,null,null,null,null,null,null,null,null,null,null,null,null,null,2.7752351800864702E-2]
[null,null,null,null,null,null,null,null,null,null,null,null,null,null,null,-2.0586737289946432E-2]
[null,null,null,null,null,null,null,null,null,null,null,null,null,null,null,7.0793915249797862E-2]
[null,null,null,null,null,null,null,null,null,null,null,null,null,null,null,-3.493476405066883E-2]
[null,null,null,null,null,null,null,null,null,null,null,null,null,null,null,0.10578102910638834]
[null,null,null,null,null,null,null,null,null,null,null,null,null,null,null,0.13864068329020657]
[null,null,null,null,null,null,null,null,null,null,null,null,null,null,null,8.6871032367966616E-2]
[null,null,null,null,null,null,null,null,null,null,null,null,null,null,null,0.10060711176463694]
[null,null,null,null,null,null,null,null,null,null,null,null,null,null,null,8.6201217938591604E-2]
[null,null,null,null,null,null,null,null,null,null,null,null,null,null,null,-0.10439731293860184]
[null,null,null,null,null,null,null,null,null,null,null,null,null,null,null,-0.12026259811012785]
[null,null,null,null,null,null,null,null,null,null,null,null,null,null,null,-9.5066640294348387E-2]
[null,null,null,null,null,null,null,null,null,null,null,null,null,null,null,-4.5758811001181413E-2]
[null,null,null,null,null,null,null,null,null,null,null,null,null,null,null,-4.1857519780028267E-2]
[null,null,null,null,null,null,null,null,null,null,null,null,null,null,null,1.6567271289227182E-2]
[null,null,null,null,null,null,null,null,null,null,null,null,null,null,null,-0.24151614751930195]
[null,null,null,null,null,null,null,null,null,null,null,null,null,null,null,-2.3386519376145504E-3]
[null,null,null,null,null,null,null,null,null,null,null,null,null,null,null,-0.16193368176423875]
[null,null,null,null,null,null,null,null,null,null,null,null,null,null,null,-0.19985766613959921]
[null,null,null,null,null,null,null,null,null,null,null,null,null,null,null,-0.13961069380709676]
[null,null,null,null,null,null,null,null,null,null,null,null,null,null,null,-8.9086926523792034E-2]
[null,null,null,null,null,null,null,null,null,null,null,null,null,null,null,-8.4266983965569538E-3]
[null,null,null,null,null,null,null,null,null,null,null,null,null,null,null,7.0145203861912758E-3]
[null,null,null,null,null,null,null,null,null,null,null,null,null,null,null,1.9403528626438085E-2]
[null,null,null,null,null,null,null,null,null,null,null,null,null,null,null,0.13837761232070184]
[null,null,null,null,null,null,null,null,null,null,null,null,null,null,null,0.11476260973171565]
[null,null,null,null,null,null,null,null,null,null,null,null,null,null,null,6.9758228071888098E-2]
[null,null,null,null,null,null,null,null,null,null,null,null,null,null,null,7.6834548023544794E-2]
[null,null,null,null,null,null,null,null,null,null,null,null,null,null,null,0.12335212376651866]
[null,null,null,null,null,null,null,null,null,null,null,null,null,null,null,-1.0067749067520376E-2]
[null,null,null,null,null,null,null,null,null,null,null,null,null,null,null,5.9412878358054477E-2]
[null,null,null,null,null,null,null,null,null,null,null,null,null,null,null,0.17581513429485798]
[null,null,null,null,null,null,null,null,null,null,null,null,null,null,null,-3.7973104344345421E-2]
[null,null,null,null,null,null,null,null,null,null,null,null,null,null,null,-4.9782684838320913E-2]
[null,null,null,null,null,null,null,null,null,null,null,null,null,null,null,6.143841157342516E-2]
[null,null,null,null,null,null,null,null,null,null,null,null,null,null,null,6.4333150340797271E-3]
[null,null,null,null,null,null,null,null,null,null,null,null,null,null,null,-0.10303106656174504]
[null,null,null,null,null,null,null,null,null,null,null,null,null,null,null,4.623088370848949E-2]
[null,null,null,null,null,null,null,null,null,null,null,null,null,null,null,1.8575373514826705E-2]
[null,null,null,null,null,null,null,null,null,null,null,null,null,null,null,-2.5911466498475307E-2]
[null,null,null,null,null,null,null,null,null,null,null,null,null,null,null,2.024576553737191E-2]
[null,null,null,null,null,null,null,null,null,null,null,null,null,null,null,1.5558644918157898E-3]
[null,null,null,null,null,null,null,null,null,null,null,null,null,null,null,0.26327486225594737]
[null,null,null,null,null,null,null,null,null,null,null,null,null,null,null,4.1803348914535819E-2]
[null,null,null,null,null,null,null,null,null,null,null,null,null,null,null,-1.3609803719559888E-2]
[null,null,null,null,null,null,null,null,null,null,null,null,null,null,null,-9.005611597927575E-2]
[null,null,null,null,null,null,null,null,null,null,null,null,null,null,null,-2.8276562659830629E-2]
[null,null,null,null,null,null,null,null,null,null,null,null,null,null,null,-1.1247548640169761E-2]
[null,null,null,null,null,null,null,null,null,null,null,null,null,null,null,-2.5193190578525426E-2]
[null,null,null,null,null,null,null,null,null,null,null,null,null,null,null,1.6925107724444791E-2]
[null,null,null,null,null,null,null,null,null,null,null,null,null,null,null,6.6466049500143343E-2]
[null,null,null,null,null,null,null,null,null,null,null,null,null,null,null,-0.12454154465382933]
[null,null,null,null,null,null,null,null,null,null,null,null,null,null,null,4.8290419412925596E-3]
[null,null,null,null,null,null,null,null,null,null,null,null,null,null,null,-6.9496423879848127E-2]
[null,null,null,null,null,null,null,null,null,null,null,null,null,null,null,0.11284676042755318]
[null,null,null,null,null,null,null,null,null,null,null,null,null,null,null,7.0263676147672635E-3]
[null,null,null,null,null,null,null,null,null,null,null,null,null,null,null,-0.11359300132721013]
[null,null,null,null,null,null,null,null,null,null,null,null,null,null,null,-0.16699983930187612]
[null,null,null,null,null,null,null,null,null,null,null,null,null,null,null,9.0888635851346877E-2]
[null,null,null,null,null,null,null,null,null,null,null,null,null,null,null,0.10606790941416847]
[null,null,null,null,null,null,null,null,null,null,null,null,null,null,null,0.11842510467452427]
[null,null,null,null,null,null,null,null,null,null,null,null,null,null,null,9.3922498826270212E-2]
[null,null,null,null,null,null,null,null,null,null,null,null,null,null,null,2.8257250000044622E-2]
[null,null,null,null,null,null,null,null,null,null,null,null,null,null,null,-4.1444910002293125E-2]
[null,null,null,null,null,null,null,null,null,null,null,null,null,null,null,-0.13217532540872154]
[null,null,null,null,null,null,null,null,null,null,null,null,null,null,null,-1.1231761533059546E-2]
[null,null,null,null,null,null,null,null,null,null,null,null,null,null,null,-8.95914804943891E-2]
[null,null,null,null,null,null,null,null,null,null,null,null,null,null,null,-4.0057977974497609E-3]
[null,null,null,null,null,null,null,null,null,null,null,null,null,null,null,-4.9724703156437899E-2]
[null,null,null,null,null,null,null,null,null,null,null,null,null,null,null,-0.12577853622288923]
[null,null,null,null,null,null,null,null,null,null,null,null,null,null,null,2.3788614799917174E-2]
[null,null,null,null,null,null,null,null,null,null,null,null,null,null,null,-1.5024343647890397E-2]
[null,null,null,null,null,null,null,null,null,null,null,null,null,null,null,-0.10707765153297888]
[null,null,null,null,null,null,null,null,null,null,null,null,null,null,null,6.8112577024435697E-2]
[null,null,null,null,null,null,null,null,null,null,null,null,null,null,null,-9.2497483355821405E-3]
[null,null,null,null,null,null,null,null,null,null,null,null,null,null,null,3.7090424056137709E-2]
[null,null,null,null,null,null,null,null,null,null,null,null,null,null,null,-4.022382396069582E-2]
[null,null,null,null,null,null,null,null,null,null,null,null,null,null,null,0.16762367631436018]
[null,null,null,null,null,null,null,null,null,null,null,null,null,null,null,5.0231396594443645E-2]
[null,null,null,null,null,null,null,null,null,null,null,null,null,null,null,5.5468115518958472E-2]
[null,null,null,null,null,null,null,null,null,null,null,null,null,null,null,-0.10946329631959739]
[null,null,null,null,null,null,null,null,null,null,null,null,null,null,null,0.10470658298274271]
[null,null,null,null,null,null,null,null,null,null,null,null,null,null,null,-2.3102063659322644E-2]
[null,null,null,null,null,null,null,null,null,null,null,null,null,null,null,1.7231615812209215E-2]
[null,null,null,null,null,null,null,null,null,null,null,null,null,null,null,8.1237870960564632E-2]
[null,null,null,null,null,null,null,null,null,null,null,null,null,null,null,-1.2171129164475552E-2]
[null,null,null,null,null,null,null,null,null,null,null,null,null,null,null,-9.5340701740076306E-2]
[null,null,null,null,null,null,null,null,null,null,null,null,null,null,null,0.10681082656882182]
[null,null,null,null,null,null,null,null,null,null,null,null,null,null,null,-1.1385118873664002E-2]
[null,null,null,null,null,null,null,null,null,null,null,null,null,null,null,-0.11549980601309265]
[null,null,null,null,null,null,null,null,null,null,null,null,null,null,null,-2.0543597346277042E-2]
[null,null,null,null,null,null,null,null,null,null,null,null,null,null,null,1.6209707420799482E-2]
[null,null,null,null,null,null,null,null,null,null,null,null,null,null,null,-7.5163018110083718E-2]
[null,null,null,null,null,null,null,null,null,null,null,null,null,null,null,-3.0232484308353333E-2]
[null,null,null,null,null,null,null,null,null,null,null,null,null,null,null,-9.0570382927512919E-2]
[null,null,null,null,null,null,null,null,null,null,null,null,null,null,null,0.13812076969081385]
[null,null,null,null,null,null,null,null,null,null,null,null,null,null,null,-2.8281525283108677E-3]
[null,null,null,null,null,null,null,null,null,null,null,null,null,null,null,0.12141013253805005]
[null,null,null,null,null,null,null,null,null,null,null,null,null,null,null,-0.18713517370258589]
[null,null,null,null,null,null,null,null,null,null,null,null,null,null,null,4.9631456856813159E-3]
[null,null,null,null,null,null,null,null,null,null,null,null,null,null,null,-3.6592334360492883E-3]
[null,null,null,null,null,null,null,null,null,null,null,null,null,null,null,6.0356190172570781E-2]
[null,null,null,null,null,null,null,null,null,null,null,null,null,null,null,-5.985097288186373E-2]
[null,null,null,null,null,null,null,null,null,null,null,null,null,null,null,6.7952701106708716E-2]
[null,null,null,null,null,null,null,null,null,null,null,null,null,null,null,-0.10465528708593173]
[null,null,null,null,null,null,null,null,null,null,null,null,null,null,null,0.1386420895341843]
[null,null,null,null,null,null,null,null,null,null,null,null,null,null,null,-1.9430309373858475E-2]
[null,null,null,null,null,null,null,null,null,null,null,null,null,null,null,-2.5345701321956012E-2]
[null,null,null,null,null,null,null,null,null,null,null,null,null,null,null,-9.4034006131844081E-2]
[null,null,null,null,null,null,null,null,null,null,null,null,null,null,null,-9.2784869416342036E-2]
[null,null,null,null,null,null,null,null,null,null,null,null,null,null,null,0.11892937405270188]
[null,null,null,null,null,null,null,null,null,null,null,null,null,null,null,1.3773572310191121E-2]
[null,null,null,null,null,null,null,null,null,null,null,null,null,null,null,-3.6971712545127752E-2]
[null,null,null,null,null,null,null,null,null,null,null,null,null,null,null,0.15525303618931069]
[null,null,null,null,null,null,null,null,null,null,null,null,null,null,null,0.13685291244104617]
[null,null,null,null,null,null,null,null,null,null,null,null,null,null,null,6.6927215453349093E-2]
[null,null,null,null,null,null,null,null,null,null,null,null,null,null,null,-9.9398411053807034E-2]
[null,null,null,null,null,null,null,null,null,null,null,null,null,null,null,3.1007231322232289E-2]
[null,null,null,null,null,null,null,null,null,null,null,null,null,null,null,9.6797079950117049E-2]
[null,null,null,null,null,null,null,null,null,null,null,null,null,null,null,-3.9629408005235837E-2]
[null,null,null,null,null,null,null,null,null,null,null,null,null,null,null,1.3347554234536214E-2]
[null,null,null,null,null,null,null,null,null,null,null,null,null,null,null,-0.1101011467122812]
[null,null,null,null,null,null,null,null,null,null,null,null,null,null,null,-8.9120141895921556E-3]
[null,null,null,null,null,null,null,null,null,null,null,null,null,null,null,-8.9079883581011307E-2]
[null,null,null,null,null,null,null,null,null,null,null,null,null,null,null,-0.14021173461602304]
[null,null,null,null,null,null,null,null,null,null,null,null,null,null,null,4.0206734000896333E-2]
[null,null,null,null,null,null,null,null,null,null,null,null,null,null,null,0.10107535810396739]
[null,null,null,null,null,null,null,null,null,null,null,null,null,null,null,-6.7106145003808133E-3]
[null,null,null,null,null,null,null,null,null,null,null,null,null,null,null,-8.5924215033509263E-2]
[null,null,null,null,null,null,null,null,null,null,null,null,null,null,null,3.521367125047966E-2]
[null,null,null,null,null,null,null,null,null,null,null,null,null,null,null,-9.4133599465988302E-2]
[null,null,null,null,null,null,null,null,null,null,null,null,null,null,null,0.13671001876116765]
[null,null,null,null,null,null,null,null,null,null,null,null,null,null,null,9.7562523103474214E-2]
[null,null,null,null,null,null,null,null,null,null,null,null,null,null,null,-0.14226862859631739]
[null,null,null,null,null,null,null,null,null,null,null,null,null,null,null,-0.20115260709448687]
[null,null,null,null,null,null,null,null,null,null,null,null,null,null,null,-0.12109433917339048]
[null,null,null,null,null,null,null,null,null,null,null,null,null,null,null,-6.6500264931388636E-2]
[null,null,null,null,null,null,null,null,null,null,null,null,null,null,null,-0.18422815367270751]
[null,null,null,null,null,null,null,null,null,null,null,null,null,null,null,7.7716338301513047E-2]
[null,null,null,null,null,null,null,null,null,null,null,null,null,null,null,-8.0911471753702238E-2]
[null,null,null,null,null,null,null,null,null,null,null,null,null,null,null,-0.13320397032920955]
[null,null,null,null,null,null,null,null,null,null,null,null,null,null,null,-2.8994886937669107E-2]
[null,null,null,null,null,null,null,null,null,null,null,null,null,null,null,-3.4083968542138937E-2]
[null,null,null,null,null,null,null,null,null,null,null,null,null,null,null,7.3709735656224837E-2]
[null,null,null,null,null,null,null,null,null,null,null,null,null,null,null,5.6413994278353689E-2]
[null,null,null,null,null,null,null,null,null,null,null,null,null,null,null,0.10814485765707867]
[null,null,null,null,null,null,null,null,null,null,null,null,null,null,null,-9.5239540838806924E-2]
[null,null,null,null,null,null,null,null,null,null,null,null,null,null,null,0.14577131207462984]
[null,null,null,null,null,null,null,null,null,null,null,null,null,null,null,7.7461041128746466E-2]
[null,null,null,null,null,null,null,null,null,null,null,null,null,null,null,-5.6705501657273255E-2]
[null,null,null,null,null,null,null,null,null,null,null,null,null,null,null,-6.233584627417587E-2]
[null,null,null,null,null,null,null,null,null,null,null,null,null,null,null,7.5640822508783734E-2]
[null,null,null,null,null,null,null,null,null,null,null,null,null,null,null,-0.14085554478027851]
[null,null,null,null,null,null,null,null,null,null,null,null,null,null,null,-0.12111941136098639]
[null,null,null,null,null,null,null,null,null,null,null,null,null,null,null,0.10901538575695416]
[null,null,null,null,null,null,null,null,null,null,null,null,null,null,null,-0.27232778985521688]
[null,null,null,null,null,null,null,null,null,null,null,null,null,null,null,2.5594469673414583E-2]
[null,null,null,null,null,null,null,null,null,null,null,null,null,null,null,-9.0631711672049767E-2]
[null,null,null,null,null,null,null,null,null,null,null,null,null,null,null,-0.29369686684243745]
[null,null,null,null,null,null,null,null,null,null,null,null,null,null,null,8.1021288882484971E-2]
[null,null,null,null,null,null,null,null,null,null,null,null,null,null,null,0.11194652257955494]
[null,null,null,null,null,null,null,null,null,null,null,null,null,null,null,6.325791083334914E-2]
[null,null,null,null,null,null,null,null,null,null,null,null,null,null,null,4.8280547069605596E-3]
[null,null,null,null,null,null,null,null,null,null,null,null,null,null,null,0.16305439979012046]
[null,null,null,null,null,null,null,null,null,null,null,null,null,null,null,3.9281498296688836E-3]
[null,null,null,null,null,null,null,null,null,null,null,null,null,null,null,4.871607623144561E-2]
[null,null,null,null,null,null,null,null,null,null,null,null,null,null,null,-6.9853808203619736E-2]
[null,null,null,null,null,null,null,null,null,null,null,null,null,null,null,-5.0831014426461874E-2]
[null,null,null,null,null,null,null,null,null,null,null,null,null,null,null,-0.12029419628400491]
[null,null,null,null,null,null,null,null,null,null,null,null,null,null,null,-0.11267095958677383]
[null,null,null,null,null,null,null,null,null,null,null,null,null,null,null,-1.3855734416510319E-2]
[null,null,null,null,null,null,null,null,null,null,null,null,null,null,null,-3.7535911410863473E-2]
[null,null,null,null,null,null,null,null,null,null,null,null,null,null,null,-6.6285931761746464E-2]
[null,null,null,null,null,null,null,null,null,null,null,null,null,null,null,-0.12161808059533388]
[null,null,null,null,null,null,null,null,null,null,null,null,null,null,null,1.2528039090175237E-2]
[null,null,null,null,null,null,null,null,null,null,null,null,null,null,null,-0.10995100596187701]
[null,null,null,null,null,null,null,null,null,null,null,null,null,null,null,0.1110975182275287]
[null,null,null,null,null,null,null,null,null,null,null,null,null,null,null,3.7258684258384106E-2]
[null,null,null,null,null,null,null,null,null,null,null,null,null,null,null,-0.13854079293892987]
[null,null,null,null,null,null,null,null,null,null,null,null,null,null,null,-2.8647051321769423E-2]
[null,null,null,null,null,null,null,null,null,null,null,null,null,null,null,8.77019809079813E-2]
[null,null,null,null,null,null,null,null,null,null,null,null,null,null,null,0.19363567689465278]
[null,null,null,null,null,null,null,null,null,null,null,null,null,null,null,0.1153287764116233]
[null,null,null,null,null,null,null,null,null,null,null,null,null,null,null,0.14507503346753448]
[null,null,null,null,null,null,null,null,null,null,null,null,null,null,null,4.9614467385492661E-2]
[null,null,null,null,null,null,null,null,null,null,null,null,null,null,null,-0.13551201609998631]
[null,null,null,null,null,null,null,null,null,null,null,null,null,null,null,4.4929002633748438E-3]
[null,null,null,null,null,null,null,null,null,null,null,null,null,null,null,-5.365903828777862E-2]
[null,null,null,null,null,null,null,null,null,null,null,null,null,null,null,0.15899425369164241]
[null,null,null,null,null,null,null,null,null,null,null,null,null,null,null,-2.2421248390060637E-3]
[null,null,null,null,null,null,null,null,null,null,null,null,null,null,null,-0.153844880006475]
[null,null,null,null,null,null,null,null,null,null,null,null,null,null,null,3.884808705551035E-2]
[null,null,null,null,null,null,null,null,null,null,null,null,null,null,null,-9.7312403061068031E-2]
[null,null,null,null,null,null,null,null,null,null,null,null,null,null,null,-7.8752845795549031E-2]
[null,null,null,null,null,null,null,null,null,null,null,null,null,null,null,0.19575764198020393]
[null,null,null,null,null,null,null,null,null,null,null,null,null,null,null,0.13044092365355409]
[null,null,null,null,null,null,null,null,null,null,null,null,null,null,null,4.7478929040821717E-2]
[null,null,null,null,null,null,null,null,null,null,null,null,null,null,null,-0.13612000766507779]
[null,null,null,null,null,null,null,null,null,null,null,null,null,null,null,-4.0740253795485362E-2]
[null,null,null,null,null,null,null,null,null,null,null,null,null,null,null,-0.12221463992064918]
[null,null,null,null,null,null,null,null,null,null,null,null,null,null,null,-2.8367977798279449E-2]
[null,null,null,null,null,null,null,null,null,null,null,null,null,null,null,-7.060203293401178E-2]
[null,null,null,null,null,null,null,null,null,null,null,null,null,null,null,-4.6906165157625121E-2]
[null,null,null,null,null,null,null,null,null,null,null,null,null,null,null,-0.12022987309088234]
[null,null,null,null,null,null,null,null,null,null,null,null,null,null,null,9.0260364216312658E-2]
[null,null,null,null,null,null,null,null,null,null,null,null,null,null,null,0.12059627838512994]
[null,null,null,null,null,null,null,null,null,null,null,null,null,null,null,9.8953461465351708E-2]
[null,null,null,null,null,null,null,null,null,null,null,null,null,null,null,-1.638145972299504E-2]
[null,null,null,null,null,null,null,null,null,null,null,null,null,null,null,-7.2338075973833339E-3]
[null,null,null,null,null,null,null,null,null,null,null,null,null,null,null,-4.5086119102061117E-2]
[null,null,null,null,null,null,null,null,null,null,null,null,null,null,null,1.4646708696946712E-2]
[null,null,null,null,null,null,null,null,null,null,null,null,null,null,null,-2.3077405377395461E-2]
[null,null,null,null,null,null,null,null,null,null,null,null,null,null,null,-2.442816720025355E-2]
[null,null,null,null,null,null,null,null,null,null,null,null,null,null,null,-7.7982895297057778E-2]
[null,null,null,null,null,null,null,null,null,null,null,null,null,null,null,-0.14988320318988574]
[null,null,null,null,null,null,null,null,null,null,null,null,null,null,null,2.0452065421105729E-2]
[null,null,null,null,null,null,null,null,null,null,null,null,null,null,null,-0.17368951119658516]
[null,null,null,null,null,null,null,null,null,null,null,null,null,null,null,-0.13344194152859823]
[null,null,null,null,null,null,null,null,null,null,null,null,null,null,null,-4.1802223882156486E-2]
[null,null,null,null,null,null,null,null,null,null,null,null,null,null,null,-3.9777293767662696E-2]
[null,null,null,null,null,null,null,null,null,null,null,null,null,null,null,-6.2523390029030679E-2]
[null,null,null,null,null,null,null,null,null,null,null,null,null,null,null,-0.1208390116479893]
[null,null,null,null,null,null,null,null,null,null,null,null,null,null,null,-1.7352441115216253E-2]
[null,null,null,null,null,null,null,null,null,null,null,null,null,null,null,9.7304703059651443E-2]
[null,null,null,null,null,null,null,null,null,null,null,null,null,null,null,6.4798766777009423E-2]
[null,null,null,null,null,null,null,null,null,null,null,null,null,null,null,-0.12488837607518005]
[null,null,null,null,null,null,null,null,null,null,null,null,null,null,null,-1.349246297657819E-2]
[null,null,null,null,null,null,null,null,null,null,null,null,null,null,null,-0.1539904822093614]
[null,null,null,null,null,null,null,null,null,null,null,null,null,null,null,-1.950762495680489E-3]
[null,null,null,null,null,null,null,null,null,null,null,null,null,null,null,8.707544433655677E-2]
[null,null,null,null,null,null,null,null,null,null,null,null,null,null,null,6.0283983619256624E-2]
[null,null,null,null,null,null,null,null,null,null,null,null,null,null,null,-4.9632328852898477E-2]
[null,null,null,null,null,null,null,null,null,null,null,null,null,null,null,6.1511290122308604E-2]
[null,null,null,null,null,null,null,null,null,null,null,null,null,null,null,-2.6778526614869225E-2]
[null,null,null,null,null,null,null,null,null,null,null,null,null,null,null,-4.9144114874227561E-2]
[null,null,null,null,null,null,null,null,null,null,null,null,null,null,null,7.4961330590219977E-2]
[null,null,null,null,null,null,null,null,null,null,null,null,null,null,null,0.15255430135767464]
[null,null,null,null,null,null,null,null,null,null,null,null,null,null,null,-7.0773204823704833E-2]
[null,null,null,null,null,null,null,null,null,null,null,null,null,null,null,3.5768918339030314E-2]
[null,null,null,null,null,null,null,null,null,null,null,null,null,null,null,-1.3017091193171432E-2]
[null,null,null,null,null,null,null,null,null,null,null,null,null,null,null,-9.0290410686369713E-2]
[null,null,null,null,null,null,null,null,null,null,null,null,null,null,null,0.15048566510993522]
[null,null,null,null,null,null,null,null,null,null,null,null,null,null,null,6.2104277175224689E-4]
[null,null,null,null,null,null,null,null,null,null,null,null,null,null,null,-6.0301597756219551E-2]
[null,null,null,null,null,null,null,null,null,null,null,null,null,null,null,5.774963025533375E-2]
[null,null,null,null,null,null,null,null,null,null,null,null,null,null,null,1.2329127509838783E-2]
[null,null,null,null,null,null,null,null,null,null,null,null,null,null,null,-6.844714732541346E-2]
[null,null,null,null,null,null,null,null,null,null,null,null,null,null,null,4.9907304214433963E-3]
[null,null,null,null,null,null,null,null,null,null,null,null,null,null,null,8.0306138779276462E-2]
[null,null,null,null,null,null,null,null,null,null,null,null,null,null,null,-0.10186218832804571]
[null,null,null,null,null,null,null,null,null,null,null,null,null,null,null,-7.4356630232737891E-2]
[null,null,null,null,null,null,null,null,null,null,null,null,null,null,null,-1.678456576530768E-2]
[null,null,null,null,null,null,null,null,null,null,null,null,null,null,null,5.9103406050933477E-2]
[null,null,null,null,null,null,null,null,null,null,null,null,null,null,null,2.0397114832270941E-2]
[null,null,null,null,null,null,null,null,null,null,null,null,null,null,null,3.850549085425418E-3]
[null,null,null,null,null,null,null,null,null,null,null,null,null,null,null,-0.11599405598036033]
[null,null,null,null,null,null,null,null,null,null,null,null,null,null,null,-6.6335297464273899E-2]
[null,null,null,null,null,null,null,null,null,null,null,null,null,null,null,-1.538899427935894E-2]
[null,null,null,null,null,null,null,null,null,null,null,null,null,null,null,9.9417217826912138E-2]
[null,null,null,null,null,null,null,null,null,null,null,null,null,null,null,5.3383796356298363E-2]
[null,null,null,null,null,null,null,null,null,null,null,null,null,null,null,-0.12760042771196622]
[null,null,null,null,null,null,null,null,null,null,null,null,null,null,null,-2.9978724251957717E-2]
[null,null,null,null,null,null,null,null,null,null,null,null,null,null,null,8.5303108192335997E-2]
[null,null,null,null,null,null,null,null,null,null,null,null,null,null,null,4.7860180055034007E-2]
[null,null,null,null,null,null,null,null,null,null,null,null,null,null,null,8.346601458064104E-2]
[null,null,null,null,null,null,null,null,null,null,null,null,null,null,null,3.1657334516167521E-2]
[null,null,null,null,null,null,null,null,null,null,null,null,null,null,null,-4.4742719273297871E-2]
[null,null,null,null,null,null,null,null,null,null,null,null,null,null,null,2.8151826415978378E-2]
[null,null,null,null,null,null,null,null,null,null,null,null,null,null,null,7.3680391360612038E-2]
[null,null,null,null,null,null,null,null,null,null,null,null,null,null,null,5.348502528978423E-2]
[null,null,null,null,null,null,null,null,null,null,null,null,null,null,null,-3.6156708295271831E-2]
[null,null,null,null,null,null,null,null,null,null,null,null,null,null,null,0.1715290232685564]
[null,null,null,null,null,null,null,null,null,null,null,null,null,null,null,4.1062537947205574E-2]
[null,null,null,null,null,null,null,null,null,null,null,null,null,null,null,-3.8546926431071892E-5]
[null,null,null,null,null,null,null,null,null,null,null,null,null,null,null,9.2292037218437928E-2]
[null,null,null,null,null,null,null,null,null,null,null,null,null,null,null,-6.371288200006224E-2]
[null,null,null,null,null,null,null,null,null,null,null,null,null,null,null,0.13412890695797278]
[null,null,null,null,null,null,null,null,null,null,null,null,null,null,null,-3.0431201158477442E-4]
[null,null,null,null,null,null,null,null,null,null,null,null,null,null,null,9.2107468216923824E-2]
[null,null,null,null,null,null,null,null,null,null,null,null,null,null,null,6.1327734213713573E-3]
[null,null,null,null,null,null,null,null,null,null,null,null,null,null,null,2.2712420528097087E-2]
[null,null,null,null,null,null,null,null,null,null,null,null,null,null,null,-5.0035165530354066E-2]
[null,null,null,null,null,null,null,null,null,null,null,null,null,null,null,-0.13048021831403542]
[null,null,null,null,null,null,null,null,null,null,null,null,null,null,null,9.9810590638508043E-2]
[null,null,null,null,null,null,null,null,null,null,null,null,null,null,null,-7.3124838101902186E-3]
[null,null,null,null,null,null,null,null,null,null,null,null,null,null,null,-1.9065987620025641E-2]
[null,null,null,null,null,null,null,null,null,null,null,null,null,null,null,5.8561722910764238E-2]
[null,null,null,null,null,null,null,null,null,null,null,null,null,null,null,-5.3211175026694195E-2]
[null,null,null,null,null,null,null,null,null,null,null,null,null,null,null,-3.6476880910031685E-2]
[null,null,null,null,null,null,null,null,null,null,null,null,null,null,null,-6.8802134082482883E-2]
[null,null,null,null,null,null,null,null,null,null,null,null,null,null,null,-0.15390638289495365]
[null,null,null,null,null,null,null,null,null,null,null,null,null,null,null,-0.12284067649984272]
[null,null,null,null,null,null,null,null,null,null,null,null,null,null,null,4.2630775355034657E-2]
[null,null,null,null,null,null,null,null,null,null,null,null,null,null,null,-4.1159875415405736E-2]
[null,null,null,null,null,null,null,null,null,null,null,null,null,null,null,0.20058888174084188]
[null,null,null,null,null,null,null,null,null,null,null,null,null,null,null,-0.21905076041905636]
[null,null,null,null,null,null,null,null,null,null,null,null,null,null,null,-6.8575277704962342E-2]
[null,null,null,null,null,null,null,null,null,null,null,null,null,null,null,0.17587473336790005]
[null,null,null,null,null,null,null,null,null,null,null,null,null,null,null,-6.039421475576634E-2]
[null,null,null,null,null,null,null,null,null,null,null,null,null,null,null,0.13324022226519017]
[null,null,null,null,null,null,null,null,null,null,null,null,null,null,null,-7.0984566127528931E-3]
[null,null,null,null,null,null,null,null,null,null,null,null,null,null,null,8.7618938563903501E-2]
[null,null,null,null,null,null,null,null,null,null,null,null,null,null,null,-2.470715600859294E-2]
[null,null,null,null,null,null,null,null,null,null,null,null,null,null,null,6.4984459725925994E-2]
[null,null,null,null,null,null,null,null,null,null,null,null,null,null,null,1.3964654738146301E-2]
[null,null,null,null,null,null,null,null,null,null,null,null,null,null,null,-0.15948323915113205]
[null,null,null,null,null,null,null,null,null,null,null,null,null,null,null,-1.9430674783114631E-2]
[null,null,null,null,null,null,null,null,null,null,null,null,null,null,null,4.0241174306470361E-2]
[null,null,null,null,null,null,null,null,null,null,null,null,null,null,null,-0.11011174749502722]
[null,null,null,null,null,null,null,null,null,null,null,null,null,null,null,2.4860899000110941E-2]
[null,null,null,null,null,null,null,null,null,null,null,null,null,null,null,-8.5175441941924154E-2]
[null,null,null,null,null,null,null,null,null,null,null,null,null,null,null,-3.1620421906882822E-2]
[null,null,null,null,null,null,null,null,null,null,null,null,null,null,null,-0.12822870770495329]
[null,null,null,null,null,null,null,null,null,null,null,null,null,null,null,2.1457507443242187E-2]
[null,null,null,null,null,null,null,null,null,null,null,null,null,null,null,0.10213150809886809]
[null,null,null,null,null,null,null,null,null,null,null,null,null,null,null,0.10332208475317034]
[null,null,null,null,null,null,null,null,null,null,null,null,null,null,null,4.3017366686029984E-2]
[null,null,null,null,null,null,null,null,null,null,null,null,null,null,null,-9.3284190052142044E-2]
[null,null,null,null,null,null,null,null,null,null,null,null,null,null,null,-1.1531569371433601E-2]
[null,null,null,null,null,null,null,null,null,null,null,null,null,null,null,-0.10855077164599325]
[null,null,null,null,null,null,null,null,null,null,null,null,null,null,null,5.5345117490117494E-2]
[null,null,null,null,null,null,null,null,null,null,null,null,null,null,null,1.4518612198916632E-2]
[null,null,null,null,null,null,null,null,null,null,null,null,null,null,null,-0.20862635051246012]
[null,null,null,null,null,null,null,null,null,null,null,null,null,null,null,1.564572943378402E-2]
[null,null,null,null,null,null,null,null,null,null,null,null,null,null,null,-4.1052167550680821E-2]
[null,null,null,null,null,null,null,null,null,null,null,null,null,null,null,-7.9348715685943566E-2]
[null,null,null,null,null,null,null,null,null,null,null,null,null,null,null,4.0185142394229746E-2]
[null,null,null,null,null,null,null,null,null,null,null,null,null,null,null,-0.13907723134468014]
[null,null,null,null,null,null,null,null,null,null,null,null,null,null,null,6.1941068704051708E-2]
[null,null,null,null,null,null,null,null,null,null,null,null,null,null,null,-1.6339758734735498E-2]
[null,null,null,null,null,null,null,null,null,null,null,null,null,null,null,-0.16001701269791901]
[null,null,null,null,null,null,null,null,null,null,null,null,null,null,null,0.16246693735111442]
[null,null,null,null,null,null,null,null,null,null,null,null,null,null,null,-8.428162612594918E-2]
[null,null,null,null,null,null,null,null,null,null,null,null,null,null,null,-0.1349767275577908]
[null,null,null,null,null,null,null,null,null,null,null,null,null,null,null,-9.2790683014736919E-2]
[null,null,null,null,null,null,null,null,null,null,null,null,null,null,null,2.152524091726999E-2]
[null,null,null,null,null,null,null,null,null,null,null,null,null,null,null,7.0621195844902621E-3]
[null,null,null,null,null,null,null,null,null,null,null,null,null,null,null,3.3624106186737661E-2]
[null,null,null,null,null,null,null,null,null,null,null,null,null,null,null,-8.0052205740951482E-2]
[null,null,null,null,null,null,null,null,null,null,null,null,null,null,null,6.3524622523068577E-2]
[null,null,null,null,null,null,null,null,null,null,null,null,null,null,null,1.2681378285378006E-2]
[null,null,null,null,null,null,null,null,null,null,null,null,null,null,null,-3.0953058070617535E-2]
[null,null,null,null,null,null,null,null,null,null,null,null,null,null,null,7.7263747037149055E-2]
[null,null,null,null,null,null,null,null,null,null,null,null,null,null,null,0.10606276999979265]
[null,null,null,null,null,null,null,null,null,null,null,null,null,null,null,0.19665779563861494]
[null,null,null,null,null,null,null,null,null,null,null,null,null,null,null,-0.21687172056676982]
[null,null,null,null,null,null,null,null,null,null,null,null,null,null,null,-2.8918122521006367E-2]
[null,null,null,null,null,null,null,null,null,null,null,null,null,null,null,6.4240083900237152E-2]
[null,null,null,null,null,null,null,null,null,null,null,null,null,null,null,-8.5738718142096288E-3]
[null,null,null,null,null,null,null,null,null,null,null,null,null,null,null,-3.4452361777433375E-2]
[null,null,null,null,null,null,null,null,null,null,null,null,null,null,null,-0.11695096686909144]
[null,null,null,null,null,null,null,null,null,null,null,null,null,null,null,-1.7928012437885887E-2]
[null,null,null,null,null,null,null,null,null,null,null,null,null,null,null,0.18376705323193571]
[null,null,null,null,null,null,null,null,null,null,null,null,null,null,null,-2.3760597223650422E-2]
[null,null,null,null,null,null,null,null,null,null,null,null,null,null,null,2.9480753234900649E-2]
[null,null,null,null,null,null,null,null,null,null,null,null,null,null,null,-4.0681252208753481E-2]
[null,null,null,null,null,null,null,null,null,null,null,null,null,null,null,-5.7044671476399002E-2]
[null,null,null,null,null,null,null,null,null,null,null,null,null,null,null,8.4600450976937101E-3]
[null,null,null,null,null,null,null,null,null,null,null,null,null,null,null,-6.9017817782817903E-2]
[null,null,null,null,null,null,null,null,null,null,null,null,null,null,null,4.3673874763663155E-2]
[null,null,null,null,null,null,null,null,null,null,null,null,null,null,null,0.1350194277313447]
[null,null,null,null,null,null,null,null,null,null,null,null,null,null,null,-0.14138357138173574]
[null,null,null,null,null,null,null,null,null,null,null,null,null,null,null,1.9946741528167715E-2]
[null,null,null,null,null,null,null,null,null,null,null,null,null,null,null,-0.23325427750247579]
[null,null,null,null,null,null,null,null,null,null,null,null,null,null,null,-0.1229133074189732]
[null,null,null,null,null,null,null,null,null,null,null,null,null,null,null,-0.14617862915602173]
[null,null,null,null,null,null,null,null,null,null,null,null,null,null,null,-0.1353221933346388]
[null,null,null,null,null,null,null,null,null,null,null,null,null,null,null,-6.2058273713623671E-2]
[null,null,null,null,null,null,null,null,null,null,null,null,null,null,null,-7.2757659644023906E-2]
[null,null,null,null,null,null,null,null,null,null,null,null,null,null,null,-6.4353655468037438E-2]
[null,null,null,null,null,null,null,null,null,null,null,null,null,null,null,-0.13139312027810141]
[null,null,null,null,null,null,null,null,null,null,null,null,null,null,null,7.941304482470006E-2]
[null,null,null,null,null,null,null,null,null,null,null,null,null,null,null,-4.9178205248018504E-2]
[null,null,null,null,null,null,null,null,null,null,null,null,null,null,null,-3.2945001791830991E-2]
[null,null,null,null,null,null,null,null,null,null,null,null,null,null,null,0.19883449478421719]
[null,null,null,null,null,null,null,null,null,null,null,null,null,null,null,6.5771993964983136E-2]
[null,null,null,null,null,null,null,null,null,null,null,null,null,null,null,0.1138890803050267]
[null,null,null,null,null,null,null,null,null,null,null,null,null,null,null,3.3176840404915621E-2]
[null,null,null,null,null,null,null,null,null,null,null,null,null,null,null,3.0955926391634497E-2]
[null,null,null,null,null,null,null,null,null,null,null,null,null,null,null,8.1851147036217556E-2]
[null,null,null,null,null,null,null,null,null,null,null,null,null,null,null,-0.19562382652606189]
[null,null,null,null,null,null,null,null,null,null,null,null,null,null,null,6.2637556480070857E-3]
[null,null,null,null,null,null,null,null,null,null,null,null,null,null,null,-0.11349946075383954]
[null,null,null,null,null,null,null,null,null,null,null,null,null,null,null,0.16314818489656033]
[null,null,null,null,null,null,null,null,null,null,null,null,null,null,null,7.8801932711614231E-2]
[null,null,null,null,null,null,null,null,null,null,null,null,null,null,null,9.2338091311704798E-2]
[null,null,null,null,null,null,null,null,null,null,null,null,null,null,null,7.0791458247193448E-2]
[null,null,null,null,null,null,null,null,null,null,null,null,null,null,null,6.1470298689006268E-2]
[null,null,null,null,null,null,null,null,null,null,null,null,null,null,null,3.9000984200517119E-2]
[null,null,null,null,null,null,null,null,null,null,null,null,null,null,null,9.599393825915721E-2]
[null,null,null,null,null,null,null,null,null,null,null,null,null,null,null,-0.10337384670333641]
[null,null,null,null,null,null,null,null,null,null,null,null,null,null,null,1.3982472779557848E-2]
[null,null,null,null,null,null,null,null,null,null,null,null,null,null,null,-1.4913700442895757E-2]
[null,null,null,null,null,null,null,null,null,null,null,null,null,null,null,0.14237936773414214]
[null,null,null,null,null,null,null,null,null,null,null,null,null,null,null,6.8080983505489648E-2]
[null,null,null,null,null,null,null,null,null,null,null,null,null,null,null,-3.16678593267209E-2]
[null,null,null,null,null,null,null,null,null,null,null,null,null,null,null,-3.6517316015857011E-2]
[null,null,null,null,null,null,null,null,null,null,null,null,null,null,null,-5.5090277510325407E-2]
[null,null,null,null,null,null,null,null,null,null,null,null,null,null,null,1.0665757677945682E-2]
[null,null,null,null,null,null,null,null,null,null,null,null,null,null,null,1.7642710711963071E-2]
[null,null,null,null,null,null,null,null,null,null,null,null,null,null,null,-4.4644353054618183E-2]
[null,null,null,null,null,null,null,null,null,null,null,null,null,null,null,0.1902889261460862]
[null,null,null,null,null,null,null,null,null,null,null,null,null,null,null,0.20029617555371848]
[null,null,null,null,null,null,null,null,null,null,null,null,null,null,null,-0.13736060788603727]
[null,null,null,null,null,null,null,null,null,null,null,null,null,null,null,1.8813499210086182E-2]
[null,null,null,null,null,null,null,null,null,null,null,null,null,null,null,-0.12439184267724585]
[null,null,null,null,null,null,null,null,null,null,null,null,null,null,null,-8.6736758285316407E-2]
[null,null,null,null,null,null,null,null,null,null,null,null,null,null,null,9.3220725031412696E-2]
[null,null,null,null,null,null,null,null,null,null,null,null,null,null,null,-1.311059251714889E-2]
[null,null,null,null,null,null,null,null,null,null,null,null,null,null,null,-9.8045129677768461E-3]
[null,null,null,null,null,null,null,null,null,null,null,null,null,null,null,-1.0373669367874672E-2]
[null,null,null,null,null,null,null,null,null,null,null,null,null,null,null,-5.4807162783387958E-2]
[null,null,null,null,null,null,null,null,null,null,null,null,null,null,null,2.1551931412876346E-4]
[null,null,null,null,null,null,null,null,null,null,null,null,null,null,null,-8.9295994381739283E-2]
[null,null,null,null,null,null,null,null,null,null,null,null,null,null,null,0.11831053161324677]
[null,null,null,null,null,null,null,null,null,null,null,null,null,null,null,-5.1813209176895039E-3]
[null,null,null,null,null,null,null,null,null,null,null,null,null,null,null,9.1312310071889766E-2]
[null,null,null,null,null,null,null,null,null,null,null,null,null,null,null,9.8210061705069227E-2]
[null,null,null,null,null,null,null,null,null,null,null,null,null,null,null,-3.626282738061614E-2]
[null,null,null,null,null,null,null,null,null,null,null,null,null,null,null,-0.2362795125740533]
[null,null,null,null,null,null,null,null,null,null,null,null,null,null,null,2.5232643070439559E-2]
[null,null,null,null,null,null,null,null,null,null,null,null,null,null,null,3.5375032920764722E-2]
[null,null,null,null,null,null,null,null,null,null,null,null,null,null,null,7.6921704406255009E-2]
[null,null,null,null,null,null,null,null,null,null,null,null,null,null,null,5.9318446048547387E-3]
[null,null,null,null,null,null,null,null,null,null,null,null,null,null,null,0.19778268690749556]
[null,null,null,null,null,null,null,null,null,null,null,null,null,null,null,0.29632945582231135]
[null,null,null,null,null,null,null,null,null,null,null,null,null,null,null,-5.0433728464615701E-3]
[null,null,null,null,null,null,null,null,null,null,null,null,null,null,null,-4.4861004273367956E-2]
[null,null,null,null,null,null,null,null,null,null,null,null,null,null,null,-0.12823727494605169]
[null,null,null,null,null,null,null,null,null,null,null,null,null,null,null,-5.9283396521700997E-2]
[null,null,null,null,null,null,null,null,null,null,null,null,null,null,null,0.161099763567808]
[null,null,null,null,null,null,null,null,null,null,null,null,null,null,null,-6.0011194116819849E-2]
[null,null,null,null,null,null,null,null,null,null,null,null,null,null,null,-8.2796931485655846E-3]
[null,null,null,null,null,null,null,null,null,null,null,null,null,null,null,8.3275646884870561E-2]
[null,null,null,null,null,null,null,null,null,null,null,null,null,null,null,7.2860411095628838E-2]
[null,null,null,null,null,null,null,null,null,null,null,null,null,null,null,0.13635242955142887]
[null,null,null,null,null,null,null,null,null,null,null,null,null,null,null,-9.4257592891001116E-4]
[null,null,null,null,null,null,null,null,null,null,null,null,null,null,null,-0.11886942278954718]
[null,null,null,null,null,null,null,null,null,null,null,null,null,null,null,9.747296319865198E-2]
[null,null,null,null,null,null,null,null,null,null,null,null,null,null,null,0.11554820110524665]
[null,null,null,null,null,null,null,null,null,null,null,null,null,null,null,-3.6570024762619426E-2]
[null,null,null,null,null,null,null,null,null,null,null,null,null,null,null,9.8526746969989313E-3]
[null,null,null,null,null,null,null,null,null,null,null,null,null,null,null,8.555730759308923E-2]
[null,null,null,null,null,null,null,null,null,null,null,null,null,null,null,4.0130348957778013E-3]
[null,null,null,null,null,null,null,null,null,null,null,null,null,null,null,-0.16545213626068481]
[null,null,null,null,null,null,null,null,null,null,null,null,null,null,null,0.11718775454039039]
[null,null,null,null,null,null,null,null,null,null,null,null,null,null,null,7.9823071032794513E-2]
[null,null,null,null,null,null,null,null,null,null,null,null,null,null,null,8.4989476485754167E-2]
[null,null,null,null,null,null,null,null,null,null,null,null,null,null,null,6.0513669838375056E-2]
[null,null,null,null,null,null,null,null,null,null,null,null,null,null,null,-4.5182205028013274E-3]
[null,null,null,null,null,null,null,null,null,null,null,null,null,null,null,-4.7891126358505662E-2]
[null,null,null,null,null,null,null,null,null,null,null,null,null,null,null,-1.0382096340540799E-2]
[null,null,null,null,null,null,null,null,null,null,null,null,null,null,null,-5.7085744391785945E-2]
[null,null,null,null,null,null,null,null,null,null,null,null,null,null,null,-3.6855617016914848E-3]
[null,null,null,null,null,null,null,null,null,null,null,null,null,null,null,9.2266113043086538E-3]
[null,null,null,null,null,null,null,null,null,null,null,null,null,null,null,-3.7387247825088711E-2]
[null,null,null,null,null,null,null,null,null,null,null,null,null,null,null,-9.3971255826114486E-2]
[null,null,null,null,null,null,null,null,null,null,null,null,null,null,null,-4.2025687571470398E-2]
[null,null,null,null,null,null,null,null,null,null,null,null,null,null,null,4.3702754153802627E-2]
[null,null,null,null,null,null,null,null,null,null,null,null,null,null,null,-0.10606507745730652]
[null,null,null,null,null,null,null,null,null,null,null,null,null,null,null,-1.790929116399626E-3]
[null,null,null,null,null,null,null,null,null,null,null,null,null,null,null,1.5233290945293399E-2]
[null,null,null,null,null,null,null,null,null,null,null,null,null,null,null,5.4191936623556175E-2]
[null,null,null,null,null,null,null,null,null,null,null,null,null,null,null,-9.8924285350093941E-2]
[null,null,null,null,null,null,null,null,null,null,null,null,null,null,null,-5.0212278318259862E-2]
[null,null,null,null,null,null,null,null,null,null,null,null,null,null,null,7.3653483298333516E-2]
[null,null,null,null,null,null,null,null,null,null,null,null,null,null,null,-3.3426188579797768E-2]
[null,null,null,null,null,null,null,null,null,null,null,null,null,null,null,1.3645256908237972E-2]
[null,null,null,null,null,null,null,null,null,null,null,null,null,null,null,-7.3043513340456959E-2]
[null,null,null,null,null,null,null,null,null,null,null,null,null,null,null,0.15039542193567879]
[null,null,null,null,null,null,null,null,null,null,null,null,null,null,null,-4.9667059322966972E-2]
[null,null,null,null,null,null,null,null,null,null,null,null,null,null,null,4.7020424088285509E-2]
[null,null,null,null,null,null,null,null,null,null,null,null,null,null,null,-6.5193510101550362E-2]
[null,null,null,null,null,null,null,null,null,null,null,null,null,null,null,0.12596500829424967]
[null,null,null,null,null,null,null,null,null,null,null,null,null,null,null,1.5955331024866036E-2]
[null,null,null,null,null,null,null,null,null,null,null,null,null,null,null,6.6592196898266107E-2]
[null,null,null,null,null,null,null,null,null,null,null,null,null,null,null,9.3817047313696417E-2]
[null,null,null,null,null,null,null,null,null,null,null,null,null,null,null,-0.10960192841579318]
[null,null,null,null,null,null,null,null,null,null,null,null,null,null,null,-6.6669033362061661E-2]
[null,null,null,null,null,null,null,null,null,null,null,null,null,null,null,5.2084885445280116E-2]
[null,null,null,null,null,null,null,null,null,null,null,null,null,null,null,-9.7394572338787747E-2]
[null,null,null,null,null,null,null,null,null,null,null,null,null,null,null,8.0075817599836119E-2]
[null,null,null,null,null,null,null,null,null,null,null,null,null,null,null,9.8996826283878677E-3]
[null,null,null,null,null,null,null,null,null,null,null,null,null,null,null,-3.5676155051236849E-2]
[null,null,null,null,null,null,null,null,null,null,null,null,null,null,null,0.10862370071734238]
[null,null,null,null,null,null,null,null,null,null,null,null,null,null,null,0.13040769811912509]
[null,null,null,null,null,null,null,null,null,null,null,null,null,null,null,9.533594734643086E-2]
[null,null,null,null,null,null,null,null,null,null,null,null,null,null,null,9.488331315889105E-2]
[null,null,null,null,null,null,null,null,null,null,null,null,null,null,null,4.9568781674939943E-2]
[null,null,null,null,null,null,null,null,null,null,null,null,null,null,null,0.18809271971780386]
[null,null,null,null,null,null,null,null,null,null,null,null,null,null,null,-7.5390915438984324E-2]
[null,null,null,null,null,null,null,null,null,null,null,null,null,null,null,-0.12281399257654041]
[null,null,null,null,null,null,null,null,null,null,null,null,null,null,null,5.0363206761355486E-2]
[null,null,null,null,null,null,null,null,null,null,null,null,null,null,null,4.503617676225817E-2]
[null,null,null,null,null,null,null,null,null,null,null,null,null,null,null,-7.4651245734719859E-2]
[null,null,null,null,null,null,null,null,null,null,null,null,null,null,null,-0.22432655734345977]
[null,null,null,null,null,null,null,null,null,null,null,null,null,null,null,1.564366767006738E-3]
[null,null,null,null,null,null,null,null,null,null,null,null,null,null,null,0.13923231700591579]
[null,null,null,null,null,null,null,null,null,null,null,null,null,null,null,4.966952701978624E-2]
[null,null,null,null,null,null,null,null,null,null,null,null,null,null,null,-5.5949278660779915E-2]
[null,null,null,null,null,null,null,null,null,null,null,null,null,null,null,0.15533630993499917]
[null,null,null,null,null,null,null,null,null,null,null,null,null,null,null,-0.13576647601483291]
[null,null,null,null,null,null,null,null,null,null,null,null,null,null,null,-0.19991891016493898]
[null,null,null,null,null,null,null,null,null,null,null,null,null,null,null,-0.20504294458877603]
[null,null,null,null,null,null,null,null,null,null,null,null,null,null,null,8.5555196316557627E-2]
[null,null,null,null,null,null,null,null,null,null,null,null,null,null,null,1.5801078610678487E-2]
[null,null,null,null,null,null,null,null,null,null,null,null,null,null,null,3.676708584454072E-2]
[null,null,null,null,null,null,null,null,null,null,null,null,null,null,null,-6.2232618367470439E-2]
[null,null,null,null,null,null,null,null,null,null,null,null,null,null,null,0.22521037745555206]
[null,null,null,null,null,null,null,null,null,null,null,null,null,null,null,-2.8418586284670424E-3]
[null,null,null,null,null,null,null,null,null,null,null,null,null,null,null,4.7449397868646964E-2]
[null,null,null,null,null,null,null,null,null,null,null,null,null,null,null,0.16444277299862767]
[null,null,null,null,null,null,null,null,null,null,null,null,null,null,null,8.0094615584055132E-2]
[null,null,null,null,null,null,null,null,null,null,null,null,null,null,null,7.9734363657316842E-2]
[null,null,null,null,null,null,null,null,null,null,null,null,null,null,null,0.15139242362728075]
[null,null,null,null,null,null,null,null,null,null,null,null,null,null,null,0.26744305397648077]
[null,null,null,null,null,null,null,null,null,null,null,null,null,null,null,-3.096186247767673E-3]
[null,null,null,null,null,null,null,null,null,null,null,null,null,null,null,-1.8841466415763314E-2]
[null,null,null,null,null,null,null,null,null,null,null,null,null,null,null,-0.15181703600287216]
[null,null,null,null,null,null,null,null,null,null,null,null,null,null,null,6.0705786191157497E-2]
[null,null,null,null,null,null,null,null,null,null,null,null,null,null,null,-9.1134686383702479E-2]
[null,null,null,null,null,null,null,null,null,null,null,null,null,null,null,0.14633100854693457]
[null,null,null,null,null,null,null,null,null,null,null,null,null,null,null,-0.15925454369711145]
[null,null,null,null,null,null,null,null,null,null,null,null,null,null,null,9.8391867768389519E-4]
[null,null,null,null,null,null,null,null,null,null,null,null,null,null,null,0.1061458478336913]
[null,null,null,null,null,null,null,null,null,null,null,null,null,null,null,-0.10467463932978688]
[null,null,null,null,null,null,null,null,null,null,null,null,null,null,null,0.13885016409437032]
[null,null,null,null,null,null,null,null,null,null,null,null,null,null,null,2.7663251913745874E-2]
[null,null,null,null,null,null,null,null,null,null,null,null,null,null,null,5.7870764013058851E-2]
[null,null,null,null,null,null,null,null,null,null,null,null,null,null,null,-5.9737046675514993E-2]
[null,null,null,null,null,null,null,null,null,null,null,null,null,null,null,3.497829654774897E-2]
[null,null,null,null,null,null,null,null,null,null,null,null,null,null,null,-2.641691521339606E-2]
[null,null,null,null,null,null,null,null,null,null,null,null,null,null,null,7.5307883006768661E-2]
[null,null,null,null,null,null,null,null,null,null,null,null,null,null,null,-0.12303936545377839]
[null,null,null,null,null,null,null,null,null,null,null,null,null,null,null,-3.0376725806941729E-2]
[null,null,null,null,null,null,null,null,null,null,null,null,null,null,null,4.5404261507313297E-2]
[null,null,null,null,null,null,null,null,null,null,null,null,null,null,null,3.9481786531427462E-2]
[null,null,null,null,null,null,null,null,null,null,null,null,null,null,null,1.7768282712822703E-2]
[null,null,null,null,null,null,null,null,null,null,null,null,null,null,null,0.16478127453829158]
[null,null,null,null,null,null,null,null,null,null,null,null,null,null,null,-3.6906946426948889E-2]
[null,null,null,null,null,null,null,null,null,null,null,null,null,null,null,4.987506060893418E-2]
[null,null,null,null,null,null,null,null,null,null,null,null,null,null,null,-8.2778491378748351E-3]
[null,null,null,null,null,null,null,null,null,null,null,null,null,null,null,-4.0856313385004501E-3]
[null,null,null,null,null,null,null,null,null,null,null,null,null,null,null,-4.2029637058130218E-2]
[null,null,null,null,null,null,null,null,null,null,null,null,null,null,null,-6.624655502468535E-2]
[null,null,null,null,null,null,null,null,null,null,null,null,null,null,null,2.5724094542779381E-3]
[null,null,null,null,null,null,null,null,null,null,null,null,null,null,null,-2.30389707162722E-2]
[null,null,null,null,null,null,null,null,null,null,null,null,null,null,null,3.7661946150362696E-2]
[null,null,null,null,null,null,null,null,null,null,null,null,null,null,null,-4.69631117921602E-2]
[null,null,null,null,null,null,null,null,null,null,null,null,null,null,null,2.0365508067746077E-2]
[null,null,null,null,null,null,null,null,null,null,null,null,null,null,null,3.7743772461716771E-2]
[null,null,null,null,null,null,null,null,null,null,null,null,null,null,null,9.6944766087155188E-2]
[null,null,null,null,null,null,null,null,null,null,null,null,null,null,null,-5.1500861773448342E-2]
[null,null,null,null,null,null,null,null,null,null,null,null,null,null,null,-6.9573367761348454E-2]
[null,null,null,null,null,null,null,null,null,null,null,null,null,null,null,-0.15082759632286546]
[null,null,null,null,null,null,null,null,null,null,null,null,null,null,null,2.7504264920437362E-2]
[null,null,null,null,null,null,null,null,null,null,null,null,null,null,null,-0.1088609107744688]
[null,null,null,null,null,null,null,null,null,null,null,null,null,null,null,3.3311898778889864E-3]
[null,null,null,null,null,null,null,null,null,null,null,null,null,null,null,-9.0852827664061886E-2]
[null,null,null,null,null,null,null,null,null,null,null,null,null,null,null,6.1920453917973572E-2]
[null,null,null,null,null,null,null,null,null,null,null,null,null,null,null,2.5629608450889838E-2]
[null,null,null,null,null,null,null,null,null,null,null,null,null,null,null,0.11343413237337759]
[null,null,null,null,null,null,null,null,null,null,null,null,null,null,null,-0.12019340740744995]
[null,null,null,null,null,null,null,null,null,null,null,null,null,null,null,-9.9752681746061611E-2]
[null,null,null,null,null,null,null,null,null,null,null,null,null,null,null,0.12383828266266182]
[null,null,null,null,null,null,null,null,null,null,null,null,null,null,null,7.7589970663479576E-3]
[null,null,null,null,null,null,null,null,null,null,null,null,null,null,null,8.0481457426517009E-2]
[null,null,null,null,null,null,null,null,null,null,null,null,null,null,null,-1.8410790601176653E-2]
[null,null,null,null,null,null,null,null,null,null,null,null,null,null,null,-9.4454577353983854E-3]
[null,null,null,null,null,null,null,null,null,null,null,null,null,null,null,0.16503716808592883]
[null,null,null,null,null,null,null,null,null,null,null,null,null,null,null,-2.7873298355332383E-2]
[null,null,null,null,null,null,null,null,null,null,null,null,null,null,null,-5.3581755801877962E-2]
[null,null,null,null,null,null,null,null,null,null,null,null,null,null,null,-0.1330282931117652]
[null,null,null,null,null,null,null,null,null,null,null,null,null,null,null,2.6069003595618645E-2]
[null,null,null,null,null,null,null,null,null,null,null,null,null,null,null,-0.15335338925573633]
[null,null,null,null,null,null,null,null,null,null,null,null,null,null,null,3.6260290384119764E-2]
[null,null,null,null,null,null,null,null,null,null,null,null,null,null,null,-7.8051014056542578E-2]
[null,null,null,null,null,null,null,null,null,null,null,null,null,null,null,0.22660320511177076]
[null,null,null,null,null,null,null,null,null,null,null,null,null,null,null,0.1114327425865988]
[null,null,null,null,null,null,null,null,null,null,null,null,null,null,null,2.3637452632263693E-2]
[null,null,null,null,null,null,null,null,null,null,null,null,null,null,null,3.1440495618110242E-3]
[null,null,null,null,null,null,null,null,null,null,null,null,null,null,null,0.12894799201940524]
[null,null,null,null,null,null,null,null,null,null,null,null,null,null,null,0.21398443381255486]
[null,null,null,null,null,null,null,null,null,null,null,null,null,null,null,0.14547676572383114]
[null,null,null,null,null,null,null,null,null,null,null,null,null,null,null,5.6171294365411788E-2]
[null,null,null,null,null,null,null,null,null,null,null,null,null,null,null,0.16093159042898453]
[null,null,null,null,null,null,null,null,null,null,null,null,null,null,null,-9.8613085583747762E-2]
[null,null,null,null,null,null,null,null,null,null,null,null,null,null,null,5.3665318897109938E-2]
[null,null,null,null,null,null,null,null,null,null,null,null,null,null,null,5.1350762531407496E-2]
[null,null,null,null,null,null,null,null,null,null,null,null,null,null,null,-5.1848042317144662E-2]
[null,null,null,null,null,null,null,null,null,null,null,null,null,null,null,-1.8451623894035051E-2]
[null,null,null,null,null,null,null,null,null,null,null,null,null,null,null,-9.8175268219400549E-2]
[null,null,null,null,null,null,null,null,null,null,null,null,null,null,null,8.7821703402399365E-2]
[null,null,null,null,null,null,null,null,null,null,null,null,null,null,null,6.4017480030700971E-2]
[null,null,null,null,null,null,null,null,null,null,null,null,null,null,null,-0.18751796830969514]
[null,null,null,null,null,null,null,null,null,null,null,null,null,null,null,0.10778589730976718]
[null,null,null,null,null,null,null,null,null,null,null,null,null,null,null,-1.261050303849638E-2]
[null,null,null,null,null,null,null,null,null,null,null,null,null,null,null,0.11925599386201796]
[null,null,null,null,null,null,null,null,null,null,null,null,null,null,null,4.0074508711529254E-2]
[null,null,null,null,null,null,null,null,null,null,null,null,null,null,null,-0.15804518742250273]
[null,null,null,null,null,null,null,null,null,null,null,null,null,null,null,0.1209242918923374]
[null,null,null,null,null,null,null,null,null,null,null,null,null,null,null,6.2551531468578281E-2]
[null,null,null,null,null,null,null,null,null,null,null,null,null,null,null,0.11238041515762696]
[null,null,null,null,null,null,null,null,null,null,null,null,null,null,null,-3.3681879999765525E-2]
[null,null,null,null,null,null,null,null,null,null,null,null,null,null,null,-3.957021657946172E-2]
[null,null,null,null,null,null,null,null,null,null,null,null,null,null,null,-1.8306039190492149E-2]
[null,null,null,null,null,null,null,null,null,null,null,null,null,null,null,9.3566452895480989E-2]
[null,null,null,null,null,null,null,null,null,null,null,null,null,null,null,3.7037998304865226E-2]
[null,null,null,null,null,null,null,null,null,null,null,null,null,null,null,-4.2396622214724934E-2]
[null,null,null,null,null,null,null,null,null,null,null,null,null,null,null,-6.6612302277435934E-2]
[null,null,null,null,null,null,null,null,null,null,null,null,null,null,null,-7.8292384827758632E-2]
[null,null,null,null,null,null,null,null,null,null,null,null,null,null,null,-0.1187685200468802]
[null,null,null,null,null,null,null,null,null,null,null,null,null,null,null,-7.6010897176739312E-2]
[null,null,null,null,null,null,null,null,null,null,null,null,null,null,null,0.13958053053695527]
[null,null,null,null,null,null,null,null,null,null,null,null,null,null,null,-4.7751336497574058E-3]
[null,null,null,null,null,null,null,null,null,null,null,null,null,null,null,8.0373912843610104E-2]
[null,null,null,null,null,null,null,null,null,null,null,null,null,null,null,-0.150611830958779]
[null,null,null,null,null,null,null,null,null,null,null,null,null,null,null,-0.14882358373929699]
[null,null,null,null,null,null,null,null,null,null,null,null,null,null,null,-6.7210449262401259E-2]
[null,null,null,null,null,null,null,null,null,null,null,null,null,null,null,-0.1454963973479769]
[null,null,null,null,null,null,null,null,null,null,null,null,null,null,null,4.8489712224187263E-2]
[null,null,null,null,null,null,null,null,null,null,null,null,null,null,null,-0.16934833446121553]
[null,null,null,null,null,null,null,null,null,null,null,null,null,null,null,-0.15651677629996355]
[null,null,null,null,null,null,null,null,null,null,null,null,null,null,null,4.7673292697693048E-2]
[null,null,null,null,null,null,null,null,null,null,null,null,null,null,null,-0.29288347677885912]
[null,null,null,null,null,null,null,null,null,null,null,null,null,null,null,0.13301689263912839]
[null,null,null,null,null,null,null,null,null,null,null,null,null,null,null,-5.5318720676767547E-2]
[null,null,null,null,null,null,null,null,null,null,null,null,null,null,null,7.6433589320201389E-2]
[null,null,null,null,null,null,null,null,null,null,null,null,null,null,null,2.6211374230638313E-2]
[null,null,null,null,null,null,null,null,null,null,null,null,null,null,null,5.1921201720614298E-2]
[null,null,null,null,null,null,null,null,null,null,null,null,null,null,null,-2.9137851116133835E-2]
[null,null,null,null,null,null,null,null,null,null,null,null,null,null,null,-3.9488780329546093E-2]
[null,null,null,null,null,null,null,null,null,null,null,null,null,null,null,2.0902323728973007E-2]
[null,null,null,null,null,null,null,null,null,null,null,null,null,null,null,0.16707556356712805]
[null,null,null,null,null,null,null,null,null,null,null,null,null,null,null,-5.4105265009198857E-2]
[null,null,null,null,null,null,null,null,null,null,null,null,null,null,null,0.10517429713999854]
[null,null,null,null,null,null,null,null,null,null,null,null,null,null,null,2.8094051839066655E-2]
[null,null,null,null,null,null,null,null,null,null,null,null,null,null,null,-7.0526984711281231E-3]
[null,null,null,null,null,null,null,null,null,null,null,null,null,null,null,-9.2274609031979871E-2]
[null,null,null,null,null,null,null,null,null,null,null,null,null,null,null,-0.11402661767334724]
[null,null,null,null,null,null,null,null,null,null,null,null,null,null,null,-6.2850638526540367E-2]
[null,null,null,null,null,null,null,null,null,null,null,null,null,null,null,-4.2701518565819663E-2]
[null,null,null,null,null,null,null,null,null,null,null,null,null,null,null,-3.4949104743633164E-2]
[null,null,null,null,null,null,null,null,null,null,null,null,null,null,null,4.2879720739413912E-5]
[null,null,null,null,null,null,null,null,null,null,null,null,null,null,null,2.7598664737389179E-2]
[null,null,null,null,null,null,null,null,null,null,null,null,null,null,null,-9.7966514952377848E-2]
[null,null,null,null,null,null,null,null,null,null,null,null,null,null,null,1.1240406818920586E-2]
[null,null,null,null,null,null,null,null,null,null,null,null,null,null,null,-8.3674494703628866E-2]
[null,null,null,null,null,null,null,null,null,null,null,null,null,null,null,-0.20738606381515529]
[null,null,null,null,null,null,null,null,null,null,null,null,null,null,null,3.6087031970528219E-2]
[null,null,null,null,null,null,null,null,null,null,null,null,null,null,null,-7.1221971483711982E-2]
[null,null,null,null,null,null,null,null,null,null,null,null,null,null,null,0.26036319096682331]
[null,null,null,null,null,null,null,null,null,null,null,null,null,null,null,-6.3050052141296123E-2]
[null,null,null,null,null,null,null,null,null,null,null,null,null,null,null,-6.010670993841663E-2]
[null,null,null,null,null,null,null,null,null,null,null,null,null,null,null,-4.0236662911603133E-3]
[null,null,null,null,null,null,null,null,null,null,null,null,null,null,null,-0.14487896821887089]
[null,null,null,null,null,null,null,null,null,null,null,null,null,null,null,9.6302034308337947E-2]
[null,null,null,null,null,null,null,null,null,null,null,null,null,null,null,-2.2543918554005605E-2]
[null,null,null,null,null,null,null,null,null,null,null,null,null,null,null,8.4160466985941054E-2]
[null,null,null,null,null,null,null,null,null,null,null,null,null,null,null,-8.5907769681082713E-2]
[null,null,null,null,null,null,null,null,null,null,null,null,null,null,null,2.2910382111851024E-3]
[null,null,null,null,null,null,null,null,null,null,null,null,null,null,null,1.5832989389479215E-3]
[null,null,null,null,null,null,null,null,null,null,null,null,null,null,null,-2.9279050254205921E-2]
[null,null,null,null,null,null,null,null,null,null,null,null,null,null,null,-0.14283344395647152]
[null,null,null,null,null,null,null,null,null,null,null,null,null,null,null,-8.1745865518492333E-2]
[null,null,null,null,null,null,null,null,null,null,null,null,null,null,null,3.5074707867294545E-2]
[null,null,null,null,null,null,null,null,null,null,null,null,null,null,null,1.7847747189165434E-2]
[null,null,null,null,null,null,null,null,null,null,null,null,null,null,null,-0.18311934350732983]
[null,null,null,null,null,null,null,null,null,null,null,null,null,null,null,-0.1735327978645903]
[null,null,null,null,null,null,null,null,null,null,null,null,null,null,null,-6.2002820221666637E-2]
[null,null,null,null,null,null,null,null,null,null,null,null,null,null,null,6.8234205525549837E-3]
[null,null,null,null,null,null,null,null,null,null,null,null,null,null,null,0.1129760614197219]
[null,null,null,null,null,null,null,null,null,null,null,null,null,null,null,4.1496997096882746E-2]
[null,null,null,null,null,null,null,null,null,null,null,null,null,null,null,-6.2623933511028837E-2]
[null,null,null,null,null,null,null,null,null,null,null,null,null,null,null,-7.9518167358699321E-2]
[null,null,null,null,null,null,null,null,null,null,null,null,null,null,null,-0.19998916872506803]
[null,null,null,null,null,null,null,null,null,null,null,null,null,null,null,9.313712391834772E-2]
[null,null,null,null,null,null,null,null,null,null,null,null,null,null,null,-9.6340880921991778E-2]
[null,null,null,null,null,null,null,null,null,null,null,null,null,null,null,2.0557910776732431E-2]
[null,null,null,null,null,null,null,null,null,null,null,null,null,null,null,0.15964749448315751]
[null,null,null,null,null,null,null,null,null,null,null,null,null,null,null,-7.4486268151960952E-2]
[null,null,null,null,null,null,null,null,null,null,null,null,null,null,null,5.1049804036599783E-2]
[null,null,null,null,null,null,null,null,null,null,null,null,null,null,null,-0.18734696076527288]
[null,null,null,null,null,null,null,null,null,null,null,null,null,null,null,6.8440821179782271E-2]
[null,null,null,null,null,null,null,null,null,null,null,null,null,null,null,2.1887577022638147E-2]
[null,null,null,null,null,null,null,null,null,null,null,null,null,null,null,4.8796458123705781E-3]
[null,null,null,null,null,null,null,null,null,null,null,null,null,null,null,-0.12340316784846753]
[null,null,null,null,null,null,null,null,null,null,null,null,null,null,null,-0.11963304738095393]
[null,null,null,null,null,null,null,null,null,null,null,null,null,null,null,0.17271264854718088]
[null,null,null,null,null,null,null,null,null,null,null,null,null,null,null,-5.8917812917388117E-2]
[null,null,null,null,null,null,null,null,null,null,null,null,null,null,null,-8.4279128957359256E-3]
[null,null,null,null,null,null,null,null,null,null,null,null,null,null,null,-2.711215342142935E-2]
[null,null,null,null,null,null,null,null,null,null,null,null,null,null,null,-4.5837261061597703E-2]
[null,null,null,null,null,null,null,null,null,null,null,null,null,null,null,9.907535125960075E-2]
[null,null,null,null,null,null,null,null,null,null,null,null,null,null,null,-0.15520364174049997]
[null,null,null,null,null,null,null,null,null,null,null,null,null,null,null,-0.19009145665196198]
[null,null,null,null,null,null,null,null,null,null,null,null,null,null,null,-2.144195918511653E-2]
[null,null,null,null,null,null,null,null,null,null,null,null,null,null,null,9.1126199723240819E-2]
[null,null,null,null,null,null,null,null,null,null,null,null,null,null,null,2.6753920047607085E-2]
[null,null,null,null,null,null,null,null,null,null,null,null,null,null,null,-8.8025534280156414E-2]
[null,null,null,null,null,null,null,null,null,null,null,null,null,null,null,8.223829346592372E-2]
[null,null,null,null,null,null,null,null,null,null,null,null,null,null,null,-3.966228196659536E-2]
[null,null,null,null,null,null,null,null,null,null,null,null,null,null,null,-5.8605605845300036E-2]
[null,null,null,null,null,null,null,null,null,null,null,null,null,null,null,4.031240280387479E-2]
[null,null,null,null,null,null,null,null,null,null,null,null,null,null,null,-9.1425666760897042E-2]
[null,null,null,null,null,null,null,null,null,null,null,null,null,null,null,-0.14283137217363573]
[null,null,null,null,null,null,null,null,null,null,null,null,null,null,null,4.475655807375039E-2]
[null,null,null,null,null,null,null,null,null,null,null,null,null,null,null,0.1831452358415806]
[null,null,null,null,null,null,null,null,null,null,null,null,null,null,null,-0.1939999691577671]
[null,null,null,null,null,null,null,null,null,null,null,null,null,null,null,-9.5396638014720939E-3]
[null,null,null,null,null,null,null,null,null,null,null,null,null,null,null,0.27800181534473761]
[null,null,null,null,null,null,null,null,null,null,null,null,null,null,null,8.4447525903495801E-2]
[null,null,null,null,null,null,null,null,null,null,null,null,null,null,null,-3.8623281856114085E-2]
[null,null,null,null,null,null,null,null,null,null,null,null,null,null,null,-6.3616309575277877E-2]
[null,null,null,null,null,null,null,null,null,null,null,null,null,null,null,8.5381226477648457E-3]
[null,null,null,null,null,null,null,null,null,null,null,null,null,null,null,3.2484216388731189E-2]
[null,null,null,null,null,null,null,null,null,null,null,null,null,null,null,8.7680737375911422E-2]
[null,null,null,null,null,null,null,null,null,null,null,null,null,null,null,-4.870356026656604E-2]
[null,null,null,null,null,null,null,null,null,null,null,null,null,null,null,-4.1532564118747291E-2]
[null,null,null,null,null,null,null,null,null,null,null,null,null,null,null,2.2942523130126818E-2]
[null,null,null,null,null,null,null,null,null,null,null,null,null,null,null,-0.18113968331718902]
[null,null,null,null,null,null,null,null,null,null,null,null,null,null,null,1.0213420626245346E-2]
[null,null,null,null,null,null,null,null,null,null,null,null,null,null,null,-8.5750370552891211E-2]
[null,null,null,null,null,null,null,null,null,null,null,null,null,null,null,3.9320594987255188E-2]
[null,null,null,null,null,null,null,null,null,null,null,null,null,null,null,-8.3363655185400287E-2]
[null,null,null,null,null,null,null,null,null,null,null,null,null,null,null,-7.4615774800860471E-2]
[null,null,null,null,null,null,null,null,null,null,null,null,null,null,null,9.081017107139594E-2]
[null,null,null,null,null,null,null,null,null,null,null,null,null,null,null,0.21416512580463692]
[null,null,null,null,null,null,null,null,null,null,null,null,null,null,null,0.10978508873540438]
[null,null,null,null,null,null,null,null,null,null,null,null,null,null,null,7.3500708234351605E-3]
[null,null,null,null,null,null,null,null,null,null,null,null,null,null,null,-5.1171109354314237E-2]
[null,null,null,null,null,null,null,null,null,null,null,null,null,null,null,2.5921478710386747E-2]
[null,null,null,null,null,null,null,null,null,null,null,null,null,null,null,-0.19339536656475828]
[null,null,null,null,null,null,null,null,null,null,null,null,null,null,null,-7.1356948698715672E-2]
[null,null,null,null,null,null,null,null,null,null,null,null,null,null,null,9.9230383602919331E-2]
[null,null,null,null,null,null,null,null,null,null,null,null,null,null,null,-6.2520610672012464E-2]
[null,null,null,null,null,null,null,null,null,null,null,null,null,null,null,-5.2149080655389084E-3]
[null,null,null,null,null,null,null,null,null,null,null,null,null,null,null,8.3805306005371741E-2]
[null,null,null,null,null,null,null,null,null,null,null,null,null,null,null,3.8032652810790143E-2]
[null,null,null,null,null,null,null,null,null,null,null,null,null,null,null,2.8611125743341872E-2]
[null,null,null,null,null,null,null,null,null,null,null,null,null,null,null,-3.2911925760667579E-2]
[null,null,null,null,null,null,null,null,null,null,null,null,null,null,null,1.9642640804832912E-2]
[null,null,null,null,null,null,null,null,null,null,null,null,null,null,null,-8.4690278897125229E-2]
[null,null,null,null,null,null,null,null,null,null,null,null,null,null,null,1.2714287889210016E-2]
[null,null,null,null,null,null,null,null,null,null,null,null,null,null,null,-0.17535899494800761]
[null,null,null,null,null,null,null,null,null,null,null,null,null,null,null,-3.220408583330997E-2]
[null,null,null,null,null,null,null,null,null,null,null,null,null,null,null,3.9877782186887673E-2]
[null,null,null,null,null,null,null,null,null,null,null,null,null,null,null,0.12773648324118156]
[null,null,null,null,null,null,null,null,null,null,null,null,null,null,null,-0.13428090690617797]
[null,null,null,null,null,null,null,null,null,null,null,null,null,null,null,-8.9228701413762115E-2]
[null,null,null,null,null,null,null,null,null,null,null,null,null,null,null,2.0514575029438663E-2]
[null,null,null,null,null,null,null,null,null,null,null,null,null,null,null,-5.8346816724440968E-2]
[null,null,null,null,null,null,null,null,null,null,null,null,null,null,null,5.8230073996814583E-2]
[null,null,null,null,null,null,null,null,null,null,null,null,null,null,null,-7.3726400239273238E-2]
[null,null,null,null,null,null,null,null,null,null,null,null,null,null,null,0.12466848140714736]
[null,null,null,null,null,null,null,null,null,null,null,null,null,null,null,-6.5665489122672616E-2]
[null,null,null,null,null,null,null,null,null,null,null,null,null,null,null,-5.1839685451235608E-2]
[null,null,null,null,null,null,null,null,null,null,null,null,null,null,null,-8.2871337282024504E-2]
[null,null,null,null,null,null,null,null,null,null,null,null,null,null,null,-0.15190564094047118]
[null,null,null,null,null,null,null,null,null,null,null,null,null,null,null,5.9340721876586393E-2]
[null,null,null,null,null,null,null,null,null,null,null,null,null,null,null,-8.0868222804198697E-2]
[null,null,null,null,null,null,null,null,null,null,null,null,null,null,null,8.3978470628865209E-2]
[null,null,null,null,null,null,null,null,null,null,null,null,null,null,null,1.86406187266565E-2]
[null,null,null,null,null,null,null,null,null,null,null,null,null,null,null,1.3450926220613297E-2]
[null,null,null,null,null,null,null,null,null,null,null,null,null,null,null,0.12456747422081393]
[null,null,null,null,null,null,null,null,null,null,null,null,null,null,null,-6.360764256743253E-3]
[null,null,null,null,null,null,null,null,null,null,null,null,null,null,null,2.9268788901078254E-2]
[null,null,null,null,null,null,null,null,null,null,null,null,null,null,null,-5.015203964734957E-3]
[null,null,null,null,null,null,null,null,null,null,null,null,null,null,null,-7.929278708268428E-2]
[null,null,null,null,null,null,null,null,null,null,null,null,null,null,null,-9.029786332552624E-3]
[null,null,null,null,null,null,null,null,null,null,null,null,null,null,null,-0.1688585257734081]
[null,null,null,null,null,null,null,null,null,null,null,null,null,null,null,-6.9871142986157542E-2]
[null,null,null,null,null,null,null,null,null,null,null,null,null,null,null,-0.21714668327782785]
[null,null,null,null,null,null,null,null,null,null,null,null,null,null,null,-0.16797099474064653]
[null,null,null,null,null,null,null,null,null,null,null,null,null,null,null,2.3119280790907998E-2]
[null,null,null,null,null,null,null,null,null,null,null,null,null,null,null,0.19672613404314923]
[null,null,null,null,null,null,null,null,null,null,null,null,null,null,null,0.1692159164699425]
[null,null,null,null,null,null,null,null,null,null,null,null,null,null,null,-0.15503719578072958]
[null,null,null,null,null,null,null,null,null,null,null,null,null,null,null,-5.2554013717610204E-2]
[null,null,null,null,null,null,null,null,null,null,null,null,null,null,null,0.10369991326784339]
[null,null,null,null,null,null,null,null,null,null,null,null,null,null,null,2.0897009574330213E-2]
[null,null,null,null,null,null,null,null,null,null,null,null,null,null,null,4.3913534627699757E-2]
[null,null,null,null,null,null,null,null,null,null,null,null,null,null,null,-7.0051499746874565E-2]
[null,null,null,null,null,null,null,null,null,null,null,null,null,null,null,0.18017639248850878]
[null,null,null,null,null,null,null,null,null,null,null,null,null,null,null,4.3580851010807664E-2]
[null,null,null,null,null,null,null,null,null,null,null,null,null,null,null,-3.093205584002259E-2]
[null,null,null,null,null,null,null,null,null,null,null,null,null,null,null,-8.2441627056206099E-3]
[null,null,null,null,null,null,null,null,null,null,null,null,null,null,null,-4.3242505111907954E-3]
[null,null,null,null,null,null,null,null,null,null,null,null,null,null,null,7.6927769981847138E-2]
[null,null,null,null,null,null,null,null,null,null,null,null,null,null,null,-5.3048239558762214E-2]
[null,null,null,null,null,null,null,null,null,null,null,null,null,null,null,-8.223603064906905E-2]
[null,null,null,null,null,null,null,null,null,null,null,null,null,null,null,-0.18975764888719493]
[null,null,null,null,null,null,null,null,null,null,null,null,null,null,null,-0.12382522467556274]
[null,null,null,null,null,null,null,null,null,null,null,null,null,null,null,4.1448133572173279E-2]
[null,null,null,null,null,null,null,null,null,null,null,null,null,null,null,-4.6698923656518065E-2]
[null,null,null,null,null,null,null,null,null,null,null,null,null,null,null,-4.5566637684175834E-2]
[null,null,null,null,null,null,null,null,null,null,null,null,null,null,null,1.3025212773490917E-2]
[null,null,null,null,null,null,null,null,null,null,null,null,null,null,null,2.2177796656628931E-2]
[null,null,null,null,null,null,null,null,null,null,null,null,null,null,null,-0.22538809550481342]
[null,null,null,null,null,null,null,null,null,null,null,null,null,null,null,-0.14046031403931214]
[null,null,null,null,null,null,null,null,null,null,null,null,null,null,null,-0.17431247744789505]
[null,null,null,null,null,null,null,null,null,null,null,null,null,null,null,-0.12650431885156363]
[null,null,null,null,null,null,null,null,null,null,null,null,null,null,null,7.4386062714633522E-2]
[null,null,null,null,null,null,null,null,null,null,null,null,null,null,null,-0.10937996793969187]
[null,null,null,null,null,null,null,null,null,null,null,null,null,null,null,-0.12045662669382645]
[null,null,null,null,null,null,null,null,null,null,null,null,null,null,null,-2.5545672772092666E-2]
[null,null,null,null,null,null,null,null,null,null,null,null,null,null,null,2.0755228905815545E-2]
[null,null,null,null,null,null,null,null,null,null,null,null,null,null,null,0.10649883352542198]
[null,null,null,null,null,null,null,null,null,null,null,null,null,null,null,6.7681234666786272E-2]
[null,null,null,null,null,null,null,null,null,null,null,null,null,null,null,-3.7446055884479329E-2]
[null,null,null,null,null,null,null,null,null,null,null,null,null,null,null,-3.2083462407005846E-2]